Cogmind - Beta 15 @@@ ROGUE MODE // 2025.06.02 @ 02:58:28 Player: szymekc Result: Destroyed by Executioner with Helical Railgun Performance ------------- Evolutions (9) 4500 Regions Visited (32) 6400 Robots Destroyed (575) 2875 Value Destroyed (36905) 36905 Prototype IDs (232) 4640 Alien Tech Used (7) 1400 Bonus (62303) 62303 TOTAL SCORE: 119023 Bonus ------- Triggered High Security 500 High Alert Combat Kills 25088 Follower Combat Kills 919 Registered with UFD 300 Met Optimus in HQ 500 Met Imprinter 300 Destroyed Z-Imprinter 1000 Met Zhirov 300 Met Warlord at Base 500 MAIN.C Attacked Warlord 500 Warlord Defense Kills 1484 Scanned by Researcher 500 Destroyed Superfortress 15000 Met Optimus at Protoforge 1000 Completed Drillbomb Mission10000 Destroyed MAIN.C Guards 500 Met MAIN.C 5000 Friendly Fire -1088 Cogmind --------- Core Integrity 0/1600 Matter 300/300 Energy 100/100 System Corruption 17% Temperature Cool (0) Movement Core (50) Location -1/Command Parts ------- > --- POWER (3) -------- (None) > --- PROPULSION (9) --- Combat Linear Gravjet > --- UTILITY (11) ----- Experimental Armor Integrity Analyzer > --- WEAPON (3) ------- (None) > --- INVENTORY (5) ---- Light Quantum Reactor Combat Antigrav System Combat Linear Gravjet Peak State ------------ > --- POWER ------------ Concept Zero-point Core Concept Zero-point Core > --- PROPULSION ------- Experimental Antigrav System Gravjet Array Gravjet Array Concept Combat Aerolev Unit Concept Combat Aerolev Unit Concept Gyrokinetic System > --- UTILITY ---------- Concept Antigrav Storage Unit Spectral Analyzer Surveybot 24 Chip Experimental Armor Integrity Analyzer Experimental Kinecellerator Concept Reaction Jets Concept Cloak Mesh Concept Core Shell Centrium Medium Armor Plating Concept RG22 Armor Crosscalibrator > --- WEAPON ----------- Concept XC Strikerail Concept XC Strikerail Concept XC Strikerail > --- INVENTORY -------- Concept Zero-point Core Concept Zero-point Core Concept Combat Aerolev Unit Concept Gyrokinetic System Concept Gyrokinetic System Concept Chromion Battery Concept NT7 Matterbank Zionite Metafield Generator Experimental Active Sensor Suite Experimental Terrain Scanner Concept Weapon Articulator Concept Phase Shift Module Experimental EM Shield Concept Hardlight Director Concept Antimissile System High-powered Transdimensional Reconstructor Enhanced Gamma Rifle Concept Plasma Driver Concept Plasma Driver Concept XC Strikerail Concept XC Strikerail Omega Cannon Concept Blasthammer [Rating: 298] Favorites ----------- Power Concept Zero-point Core Engine Heavy Ion Engine Power Core Concept Zero-point Core Reactor Vortex Chain Reactor Propulsion Improved Flight Unit Treads Light Treads Leg Enhanced Biometal Leg Hover Unit Combat Linear Gravjet Flight Unit Improved Flight Unit Utility Medium Storage Unit Device Zionite Metafield Generator Storage Medium Storage Unit Processor A0-MCA's Component Scanner Hackware Experimental System Shield Protection Concept RG22 Armor Weapon Concept XC Strikerail Energy Gun Spread Laser Energy Cannon Advanced Beam Cannon Ballistic Gun Concept XC Strikerail Ballistic Cannon Concept Heavy Railcannon Launcher Concept Tactical Fusion Warhead Special Weapon Junk Cannon Impact Weapon Shock Maul Slashing Weapon Sigix Broadsword Piercing Weapon CR-A16's Pointy Stick Special Melee Weapon Advanced Datajack Build | -11 -10 -10 -9 -9 -9 -9 -6 -6 -6 -6 -6 -6 -6 -5 -5 -5 -5 -5 -5 -5 -4 -4 -4 -4 -3 -3 -3 -2 -2 -2 -1 -1 ------- Run | Yrd Mat Min Mat Sto Rec Scr Fac Was Fac Low Low Zio Dee Pro Fac Was Fac Upp Upp Zhi Pro Fac Upp War Pro Res Tes Res Qua Frg Acc Com Slots Evolved 18 | . . . 2 . . . 6 . . . . . . . 2 . . . . . . 2 . . . 2 . 2 . . 2 . Power 1 | . . . . . . . . . . . . . . . . . . . . . . . . . . . . . . . 1 . Propulsion 7 | . . . 1 . . . 2 . . . . . . . 1 . . . . . . 1 . . . . . 1 . . 1 . Utility 9 | . . . 1 . . . 4 . . . . . . . 1 . . . . . . 1 . . . 1 . 1 . . . . Weapon 1 | . . . . . . . . . . . . . . . . . . . . . . . . . . 1 . . . . . . Parts Attached 275 | 7 12 6 8 23 2 4 17 3 3 2 1 1 7 . . . 3 . . 4 . 7 . 18 . 5 7 2 5 90 10 28 Power 31 | 1 2 1 1 2 . . 1 . 2 1 1 . 2 . . . . . . 1 . 3 . 1 . . . . . 8 1 3 Engine 8 | 1 1 1 1 2 . . 1 . 1 . . . . . . . . . . . . . . . . . . . . . . . Core 13 | . 1 . . . . . . . 1 1 1 . . . . . . . . . . 3 . . . . . . . 6 . . Reactor 10 | . . . . . . . . . . . . . 2 . . . . . . 1 . . . 1 . . . . . 2 1 3 Propulsion 84 | 2 3 . 2 12 2 . 5 . . . . . . . . . 1 . . . . 1 . 10 . . 1 1 2 26 4 12 Treads 22 | 2 3 . 2 12 2 . . . . . . . . . . . . . . . . . . . . . . . . . . 1 Leg 5 | . . . . . . . . . . . . . . . . . . . . . . . . . . . . . . 5 . . Wheel . | . . . . . . . . . . . . . . . . . . . . . . . . . . . . . . . . . Hover 50 | . . . . . . . . . . . . . . . . . . . . . . . . 10 . . 1 1 2 21 4 11 Flight 7 | . . . . . . . 5 . . . . . . . . . 1 . . . . 1 . . . . . . . . . . Utility 97 | 2 4 4 1 4 . 3 11 1 1 . . . 4 . . . 1 . . 2 . 3 . 4 . 2 3 . 2 33 4 8 Device 52 | 2 1 3 1 3 . 1 5 1 . . . . 1 . . . 1 . . 1 . 1 . 1 . 1 2 . 1 18 2 6 Storage 9 | . 2 1 . . . . 1 . 1 . . . . . . . . . . . . . . . . . 1 . . 2 . 1 Processor 16 | . . . . 1 . 1 4 . . . . . 1 . . . . . . . . 1 . 2 . . . . . 4 1 1 Hackware 4 | . . . . . . . 1 . . . . . 1 . . . . . . . . 1 . . . . . . . . 1 . Protection 16 | . 1 . . . . 1 . . . . . . 1 . . . . . . 1 . . . 1 . 1 . . 1 9 . . Artifact . | . . . . . . . . . . . . . . . . . . . . . . . . . . . . . . . . . Weapon 63 | 2 3 1 4 5 . 1 . 2 . 1 . 1 1 . . . 1 . . 1 . . . 3 . 3 3 1 1 23 1 5 Energy Gun 13 | 1 3 . 2 . . . . . . 1 . . . . . . . . . . . . . . . . . . . 4 . 2 Energy Cannon 14 | . . . . 3 . . . . . . . . . . . . 1 . . . . . . 1 . . 2 1 . 3 1 2 Ballistic Gun 18 | 1 . . 2 . . . . . . . . . . . . . . . . . . . . 2 . 1 . . . 12 . . Ballistic Cannon 4 | . . . . . . . . . . . . . . . . . . . . . . . . . . . 1 . . 3 . . Launcher 3 | . . . . . . . . 1 . . . . . . . . . . . . . . . . . . . . . 1 . 1 Special Weapon 5 | . . . . 1 . 1 . . . . . 1 1 . . . . . . . . . . . . 1 . . . . . . Impact Weapon 1 | . . . . 1 . . . . . . . . . . . . . . . . . . . . . . . . . . . . Slashing Weapon 3 | . . 1 . . . . . . . . . . . . . . . . . . . . . . . 1 . . 1 . . . Piercing Weapon 1 | . . . . . . . . . . . . . . . . . . . . 1 . . . . . . . . . . . . Special Melee Weapon 1 | . . . . . . . . 1 . . . . . . . . . . . . . . . . . . . . . . . . Unidentified Prototypes 18 | . . . 1 3 . 1 . . . . . . . . . . . . 1 1 . . . . . . . . 4 5 . 2 Corrupted Parts 1 | . . . . . . . . . . . . . . . . . . . . . . . . . . . . . . . . 1 System Corruption 4 | . . . . . . . . . . . . . . . . . . . . . . . . . . . . . . . . 4 Parts Lost 66 | . 4 1 . 4 . . . . . . . . 2 . . . 1 . . . 1 . . . . . . . . 17 . 36 Power 7 | . . . . 1 . . . . . . . . 1 . . . . . . . . . . . . . . . . . . 5 Propulsion 17 | . 1 . . . . . . . . . . . . . . . . . . . . . . . . . . . . 4 . 12 Utility 24 | . 2 1 . 2 . . . . . . . . 1 . . . 1 . . . 1 . . . . . . . . 5 . 11 Weapon 18 | . 1 . . 1 . . . . . . . . . . . . . . . . . . . . . . . . . 8 . 8 Highest Loss Streak 18 | . 2 1 . 2 . . . . . . . . 2 . . . 1 . . . 1 . . . . . . . . 4 . 18 To Critical Strikes 4 | . . . . . . . . . . . . . . . . . . . . . . . . . . . . . . 3 . 1 Average Backups 14 | . 12 15 15 19 20 17 6 5 6 6 6 5 6 7 6 7 7 8 8 8 10 9 10 9 10 9 8 7 8 19 20 11 Power . | . 1 1 1 . . . . . . . . . . . . . . . . . 1 . . . . . . . . 1 1 . Propulsion 3 | . 6 7 8 9 9 6 . . . . . . . . . . . 1 1 1 3 4 5 1 . . . . . 1 3 2 Utility 4 | . 1 2 1 3 4 4 2 3 3 3 3 3 4 5 4 5 5 6 6 5 5 2 1 2 3 2 1 . . 9 8 4 Weapon 4 | . 3 3 4 6 6 4 1 . 1 1 1 1 1 2 1 1 1 1 1 . . . 3 5 6 5 5 5 4 5 6 2 Tool/Special . | . . . . . . . . . . . . . . . . . . . . . . . . . . . . . . . . . Unused Backups 62 | . 2 2 2 7 . 6 3 1 1 . . 2 2 . . . . . . 2 . 3 . 3 . 3 2 1 2 10 . 8 Power 5 | . . . . . . . . . . . . . . . . . . . . . . 1 . . . . . 1 1 1 . 1 Propulsion 10 | . 1 . . 3 . 2 . . . . . . . . . . . . . . . 1 . . . . . . . 2 . 1 Utility 21 | . . . . 2 . 1 . 1 1 . . 2 2 . . . . . . 2 . 1 . 2 . 2 . . . 2 . 3 Weapon 24 | . 1 2 2 2 . 3 3 . . . . . . . . . . . . . . . . 1 . 1 2 . . 5 . 2 Tool/Special 2 | . . . . . . . . . . . . . . . . . . . . . . . . . . . . . 1 . . 1 Average Slot Usage (%) 92 | . 98 99 99 98 100 91 92 95 100 100 100 99 93 93 86 86 91 94 89 89 86 88 90 93 95 94 89 86 88 88 81 69 Engine 4 | . 9 14 11 11 11 11 6 6 2 . . . . . . . . . . . . . . . . . . . . . . . Core 3 | . 4 . . . . . . . 3 6 6 6 1 . . . . . . . . 6 10 2 . . . . . 6 7 5 Reactor 1 | . . . . . . . . . . . . . 4 6 5 5 5 5 5 7 5 1 . 3 5 4 4 4 4 . 2 2 Treads 11 | . 27 28 33 33 33 33 . . . . . . . . . . . . . . . . . . . . . . . . . . Hover 10 | . . . . . . . . . . . . . . . . . . . . . . . . 26 35 31 27 26 29 26 25 23 Flight 7 | . . . . . . . 32 33 33 33 33 33 33 33 29 29 29 29 27 27 27 25 25 5 . . . . . . . . Device 13 | . 7 8 21 12 11 10 13 13 13 13 13 18 10 13 14 15 16 17 14 11 11 11 15 11 14 13 13 13 16 15 23 18 Storage 7 | . 12 14 11 11 11 11 6 6 6 6 6 6 6 6 5 5 5 5 5 5 5 5 5 5 5 4 4 4 4 4 3 2 Processor 12 | . . . . 7 11 1 17 20 20 20 20 20 23 20 17 17 17 17 16 16 16 19 20 23 25 22 22 20 20 14 5 6 Hackware 1 | . . . . . . . 5 6 6 6 6 1 2 6 5 5 5 5 5 5 5 8 5 1 . . . . . . . . Protection 3 | . 6 4 . . . 5 . . . . . . 2 . . . . . 2 5 3 . . 3 . 3 4 4 3 7 3 1 Energy Gun 3 | . 20 27 17 6 . . . . . . . . . . . . . . . . . . . . . . . . . . . 1 Energy Cannon 4 | . . . . 15 22 12 . . . . . . . . . . 3 5 5 1 5 5 5 . . . 1 4 3 . 2 1 Ballistic Gun 3 | . 7 . 3 . . . . . . . . . . . . . . . . . . . . 7 10 11 7 8 3 8 . . Impact Weapon 1 | . . . . . . 1 6 6 6 6 6 6 6 6 5 5 5 5 5 5 5 5 5 1 . . . . . . . . Peak Build Rating 298 | 9 13 14 19 26 22 30 65 74 74 75 74 76 81 77 85 85 102 100 100 108 102 129 128 167 167 180 195 204 219 298 293 291 Average Rating 126 | 5 10 12 16 19 22 24 60 68 74 73 74 73 75 77 82 84 95 100 99 100 99 121 128 152 160 177 187 194 211 276 284 216 On Entrance 99 | . 9 11 13 16 22 22 27 65 74 74 74 74 73 77 77 77 85 100 100 99 102 96 128 128 167 160 180 191 204 219 244 291 Naked Turns . | . . . . . . . . . . . . . . . . . . . . . . . . . . . . . . . . . Heaviest Build 135 | 9 54 54 55 57 57 70 25 25 25 23 23 25 25 24 25 25 35 35 36 41 36 45 44 70 70 83 91 92 101 135 121 121 Greatest Support 146 | 40 40 40 60 63 60 60 25 25 25 25 25 25 25 25 25 25 36 36 36 36 36 46 46 87 87 87 91 103 108 128 128 146 Greatest Overweight (x) 1 | . 1 1 . . . 1 . . . . . . . . . . . . . 1 . . . 1 . . 1 . . 1 . 1 Average Overweight (x) . | . . . . . . . . . . . . . . . . . . . . . . . . . . . . . . . . . Largest Inventory Capacity 25 | 5 20 20 20 20 20 20 20 10 10 10 10 10 10 10 10 10 10 10 10 10 10 10 10 10 10 10 10 10 10 25 25 25 Average Capacity 16 | 5 17 15 19 20 20 20 10 10 10 10 10 10 10 10 10 10 10 10 10 10 10 10 10 10 10 10 10 10 10 22 25 14 Most Carried 25 | 2 20 17 19 20 20 20 20 10 10 10 10 10 10 10 10 10 10 10 10 10 10 10 10 10 10 10 10 10 10 25 25 25 Average Carried 15 | . 12 15 15 19 20 19 10 9 9 10 10 9 9 10 9 9 9 10 10 9 10 9 10 9 10 9 9 9 9 21 23 12 Final Capacity 25 | 5 20 15 20 20 20 20 10 10 10 10 10 10 10 10 10 10 10 10 10 10 10 10 10 10 10 10 10 10 10 25 25 5 Final Carried 25 | 2 17 15 19 20 20 20 10 10 10 10 10 10 10 10 10 10 10 10 10 10 10 10 10 10 10 10 10 10 10 16 25 3 Class Distribution -------------------- 24% | Scout 22% | Scavenger-Scout 20% | Mutant 13% | Commander-Mutant 6% | Scavenger-Sprinter 4% | Sprinter Dominant Class ---------------- Mutant | -10/Materials Mutant | -10/Mines Mutant | -9/Materials Mutant | -9/Storage Commander-Mutant | -9/Recycling Commander-Mutant | -9/Scraptown Scout | -6/Factory Scout | -6/Waste Scout | -6/Factory Scout | -6/Lower Caves Scout | -6/Lower Caves Scout | -6/Zion Sprinter | -6/Deep Caves Scout | -5/Proximity Caves Scout | -5/Factory Scout | -5/Waste Scout | -5/Factory Scout | -5/Upper Caves Scout | -5/Upper Caves Gladiator | -5/Zhirov Scout | -4/Proximity Caves Hacker-Scout | -4/Factory Scout | -4/Upper Caves Commander-Scout | -4/Warlord Scout | -3/Proximity Caves Scout | -3/Research Scout | -3/Testing Scout | -2/Research Scavenger-Scout | -2/Quarantine Scavenger-Scout | -2/Protoforge Scavenger-Scout | -1/Access Scavenger-Scout | -1/Command Resources | -11 -10 -10 -9 -9 -9 -9 -6 -6 -6 -6 -6 -6 -6 -5 -5 -5 -5 -5 -5 -5 -4 -4 -4 -4 -3 -3 -3 -2 -2 -2 -1 -1 ----------- Run | Yrd Mat Min Mat Sto Rec Scr Fac Was Fac Low Low Zio Dee Pro Fac Was Fac Upp Upp Zhi Pro Fac Upp War Pro Res Tes Res Qua Frg Acc Com Matter Collected 20316 | 282 153 63 130 306 33 40 200 85 46 110 30 . 175 4 26 . 40 30 . . 138 81 20 665 35 13 677 274 896 14386 618 760 Remotely . | . . . . . . . . . . . . . . . . . . . . . . . . . . . . . . . . . Salvage Created 31158 | 147 939 289 410 1792 290 . 423 . 434 259 384 . 209 . 441 . 122 . 52 . . 197 . 926 . 89 949 448 717 19808 900 933 Parts 1394 | 12 54 16 26 92 12 . 7 . 3 12 5 . 11 . 3 . 2 . . . . 4 . 26 . 4 53 18 60 919 29 26 Haulers Intercepted 21 | . 2 . 4 6 . . 1 . 2 . . . . . 3 . . . . . . . . . . . 1 . . . 2 . Recyclers Shooed 10 | . 1 1 . 4 . . 1 . . . . . . . . . . . . . . . . . . . 2 . . . . 1 Parts Field Recycled . | . . . . . . . . . . . . . . . . . . . . . . . . . . . . . . . . . Retrieved Matter . | . . . . . . . . . . . . . . . . . . . . . . . . . . . . . . . . . Parts Self-Destructed 52 | . . . . . . . . . . 13 15 1 . 6 . . . 8 2 . 7 . . . . . . . . . . . Prevented 14 | . . . . . . . . . . 5 5 . . . . . . . 4 . . . . . . . . . . . . . Kills | -11 -10 -10 -9 -9 -9 -9 -6 -6 -6 -6 -6 -6 -6 -5 -5 -5 -5 -5 -5 -5 -4 -4 -4 -4 -3 -3 -3 -2 -2 -2 -1 -1 ------- Run | Yrd Mat Min Mat Sto Rec Scr Fac Was Fac Low Low Zio Dee Pro Fac Was Fac Upp Upp Zhi Pro Fac Upp War Pro Res Tes Res Qua Frg Acc Com Combat Hostiles Destroyed 469 | . 20 9 9 28 5 . 3 . 4 5 4 . 3 . . . 1 . . . . . . 11 . . 8 3 11 315 6 24 Melee 2 | . . . . . . . . . 1 . . . . . . . 1 . . . . . . . . . . . . . . . Guns 267 | . 20 9 9 12 . . . . . . . . . . . . . . . . . . . 11 . . . 2 . 204 . . Cannons 94 | . . . . 15 5 . . . . . . . . . . . . . . . . . . . . . 8 . 11 46 6 3 AOE 84 | . . . . . . . . . . 2 . . 2 . . . . . . . . . . . . . . . . 62 . 18 Classes Destroyed 31 | 3 4 1 . 4 . . 2 . . 1 . . 1 . . . . . 1 . . . . 2 . . 1 . 1 9 1 . Worker 10 | 1 1 1 1 2 . . . . . . . . . . . . . . . . . . . . . 1 . 1 . . . 2 Builder 4 | . . . . 1 . . . . . . . . . . . . . . . . . . . . . . 2 . . 1 . . Tunneler 5 | 3 . . . . . . 1 . . . . . . . . . . . . . . . . . . . . . . . 1 . Hauler 21 | . 2 . 4 6 . . 1 . 2 . . . . . 3 . . . . . . . . . . . 1 . . . 2 . Recycler 16 | 1 2 1 1 4 . . 1 . . . . . . . 1 . . . . . . . . . . . 1 1 . . 3 . Minesweeper 1 | . . . . . . . . . . 1 . . . . . . . . . . . . . . . . . . . . . . Mechanic 11 | . . . . . . . . . . . . . . . . . . . . . . . . 1 . . . . . 10 . . Operator 4 | . . . . 1 . . . . . . . . . . 1 . 1 . . . . . . . . . . . . 1 . . Drone 14 | . . . . . . . . . . . . . . . . . . . . . . . . . . . . . 1 13 . . Watcher 24 | . 2 . . 2 . . 1 . . . . . . . 1 . 2 . . . . 5 . . . 2 . 1 . 5 2 1 Swarmer 56 | . 6 3 5 . . . . . . . . . . . . . . . . . . . . . . . . . . 36 . 6 Cutter 7 | . . . . . . . . . . . . . . . . . . . . . . . . . . . . . . . 3 4 Saboteur 13 | . . . . . . . . . . . . . . . . . . . . . . . . . . . . . . 13 . . Grunt 105 | . 14 4 3 17 . . . . 3 3 1 . . . . . 1 . . . . . . 6 . . 3 . . 44 . 6 Brawler 21 | . . . . 2 1 . . . . . . . . . . . . . . . . . . 2 . . . . . 16 . . Duelist 17 | . . . . 1 . . . . . . 1 . . . . . . . . . . . . 1 . . . . . 14 . . Protector 24 | . . . . . . . . . . . . . . . . . . . . . . . . 1 . . . . . 23 . . Researcher 6 | . . . . . . . . . . . . . . . . . . . . . . . . . . . 1 . . 5 . . Sentry 36 | . . 2 1 8 4 . 1 . . . 1 . . . . . . . . . . . . 1 . . . 2 . 13 2 1 Demolisher 1 | . . . . . . . . . . . . . . . . . . . . . . . . . . . . . . . 1 . Specialist 1 | . . . . . . . . . . . . . . . . . . . . . . . . . . . . . . 1 . . Hunter 32 | . . . . . . . 1 . 1 2 1 . . . . . . . . . . . . . . . . . 1 26 . . Programmer 35 | . . . . . . . 1 . . . . . . . . . . . . . . . . 1 . . 5 1 . 26 . 1 Quarantine Guard 9 | . . . . . . . . . . . . . . . . . . . . . . . . . . . . . 9 . . . M Guard 2 | . . . . . . . . . . . . . . . . . . . . . . . . . . . . . . . . 2 Hotshot 4 | . . . . . . . . . . . . . . . . . . . . . . . . . . . . . . 4 . . Decapitator 9 | . . . . . . . . . . . . . . . . . . . . . . . . . . . . . . 9 . . Immortal 6 | . . . . . . . . . . . . . . . . . . . . . . . . . . . . . . 6 . . Combat Programmer 2 | . . . . . . . . . . . . . . . . . . . . . . . . . . . . . . . . 2 Striker 36 | . . . . . . . . . . . . . . . . . . . . . . . . . . . . . . 34 . 2 Executioner 29 | . . . . . . . . . . . . . . . . . . . . . . . . . . . . . . 29 . . Alpha 7 2 | . . . . . . . . . . . . . . . . . . . . . . . . . . . . . . 2 . . V-Series 4 | . . . . . . . . . . . . . . . . . . . . . . . . . . . . . . 4 . . Protovariant Y 1 | . . . . . . . . . . . . . . . . . . . . . . . . . . . 1 . . . . . Elite 2 | . . . . . . . . . . . . . . . . . . . . . . . . . . . . . . 2 . . Scrapoid 1 | . . . . . . . . . . . . . . . . . . . . . . . . . . . . . . 1 . . Z-Technician 4 | . . . . . . . . . . . . . 4 . . . . . . . . . . . . . . . . . . . Z-Light 3 | . . . . . . . . . . . . . 3 . . . . . . . . . . . . . . . . . . . Packrat 2 | . . . . . . . . . . . 2 . . . . . . . . . . . . . . . . . . . . . Samaritan 1 | . . . . . . . . . . . . . . . . . . . 1 . . . . . . . . . . . . . Wasp 1 | . . . . . . . . . 1 . . . . . . . . . . . . . . . . . . . . . . . Savage 1 | . . . . . . . . . . . . . . . . . . . . . . . . 1 . . . . . . . . Best Kill Streak 16 | 3 6 3 5 9 1 . 1 . 4 3 2 . 4 . 3 . 2 . . . . 3 . 5 . 1 10 3 2 16 4 10 Combat Bots Only 15 | . 4 3 5 6 1 . 1 . 4 3 2 . 2 . . . 1 . . . . . . 4 . . 4 3 2 15 3 10 Max Kills in Single Turn 8 | 1 1 2 1 2 1 . 1 . 2 2 1 . 2 . 1 . 1 . 1 . . 1 . 2 . 1 2 1 1 8 1 4 Gunslinging 1 | . . 1 . . . . . . . . . . . . . . . . . . . . . . . . . . . 1 . . Exploded 8 | . . . . . . . . . . 2 . . 2 . . . . . . . . . . . . . . . . 8 . 4 Melee 1 | . . . . . . . . . 1 . . . . . . . 1 . . . . . . . . . . . . . . . Uniques/NPCs Destroyed 1 | . . . . . . . . . . . . . 1 . . . . . . . . . . . . . . . . . . . Z-Imprinter (-6/Deep Caves) Combat | -11 -10 -10 -9 -9 -9 -9 -6 -6 -6 -6 -6 -6 -6 -5 -5 -5 -5 -5 -5 -5 -4 -4 -4 -4 -3 -3 -3 -2 -2 -2 -1 -1 -------- Run | Yrd Mat Min Mat Sto Rec Scr Fac Was Fac Low Low Zio Dee Pro Fac Was Fac Upp Upp Zhi Pro Fac Upp War Pro Res Tes Res Qua Frg Acc Com Hostile Shots Fired 1896 | . 115 32 29 96 10 . 20 . 4 13 . . 37 . 9 1 8 14 5 . 39 6 . 21 1 . 36 8 26 790 52 524 Missed 834 | . 29 7 8 30 3 . 14 . 1 5 . . 21 . 4 1 5 9 3 . 17 3 . 10 . . 15 1 17 401 21 209 Intercepted 8 | . . . . . . . . . . . . . . . . . . . . . . . . . . . . . . . 1 7 Hits 1062 | . 86 25 21 66 7 . 6 . 3 8 . . 16 . 5 . 3 5 2 . 22 3 . 11 1 . 21 7 9 389 31 315 Melee 24 | . . . . . . . . . . . . . . . . . . . . . 1 . . . . . . . . 18 2 3 Projectile 1038 | . 86 25 21 66 7 . 6 . 3 8 . . 16 . 5 . 3 5 2 . 21 3 . 11 1 . 21 7 9 371 29 312 AOE 11 | . . . . . . . . . . . . . . . . . . . . . . . . . . . . . 1 5 3 2 Critical Strikes 66 | . . 3 . . . . 2 . . 2 . . . . . . . . . . 1 . . . . . 1 . . 37 1 19 Actively Blocked 1 | . . . . . . . . . . . . . . . . . . . . . 1 . . . . . . . . . . . Part Disruptions 7 | . . . . . . . . . . . . . . . . . . . . . . . . . . . 1 . . 1 . 5 Damage Taken 23911 | . 935 311 189 956 106 . 79 . 82 178 . . 463 . 82 . 69 96 29 . 394 56 . 217 29 . 526 177 379 10255 931 7372 Core 3477 | . 189 12 18 82 17 . 14 . 64 55 . . 222 . 19 . 25 35 . . 26 38 . 33 . . 26 . 19 967 167 1449 Absorbed by Shields 3428 | . . . . . . . . . . . . . . . . . . . . . . . . 90 . . 38 . . 3042 . 258 Redirected to Shielding 369 | . . . . . . . . . . . . . . . . . . . . . 180 . . . . . . . . 189 . . Ignored by Resistances 631 | . . . . . . . . . . . . . . . . . . . . . . . . . . . . . . 177 . 454 Regen/Repaired (Parts) 1900 | . . . . . . . . 24 . 9 . 185 . . 6 . 117 . . . . . . 12 . . . . 2 1345 107 93 Core Remaining (%) 67 | 100 . 19 . . . 70 . . . . . . . 58 . . . . . . 89 . . . 93 . 98 . . 13 . . Volleys Fired 1222 | 12 78 21 29 85 11 . . 4 . 1 . . 9 . . . 5 . 1 . 4 7 . 56 1 9 46 18 36 687 59 43 Largest 3 | 2 2 2 2 2 2 . . 1 . 1 . . 1 . . . 1 . 1 . 1 1 . 2 2 3 2 3 2 3 2 3 Hottest 250 | 60 130 130 130 136 136 . . 43 . 43 . . 43 . . . 90 . 90 . 90 90 . 100 70 105 130 190 120 204 250 250 Shots Fired 2408 | 24 146 43 58 167 22 . . 4 . 1 . . 9 . . . 5 . 2 . 4 7 . 111 2 19 47 28 39 1539 71 60 Gun 1868 | 24 146 43 58 75 . . . . . . . . . . . . . . . . . . . 110 2 18 2 14 6 1344 2 24 Cannon 475 | . . . . 92 22 . . . . . . . . . . . 5 . 2 . 4 7 . 1 . . 45 14 33 158 69 23 Launcher 60 | . . . . . . . . 4 . 1 . . 5 . . . . . . . . . . . . . . . . 37 . 13 Special 5 | . . . . . . . . . . . . . 4 . . . . . . . . . . . . 1 . . . . . . Kinetic 1679 | 12 59 . 8 . . . . . . . . . . . . . . . . . . . . 110 2 18 15 14 23 1397 19 2 Thermal 576 | 12 79 43 50 167 22 . . . . . . . . . . . 5 . 2 . 4 7 . . . . 32 14 16 52 50 21 Explosive 60 | . . . . . . . . 4 . 1 . . 5 . . . . . . . . . . . . . . . . 37 . 13 Electromagnetic 80 | . 8 . . . . . . . . . . . . . . . . . . . . . . . . . . . . 53 2 17 Entropic 8 | . . . . . . . . . . . . . . . . . . . . . . . . 1 . . . . . . . 7 Robot Hit Streak 62 | 4 13 13 10 14 12 . . 6 . . . . 1 . . . . . 3 . . . . 10 . 4 16 9 10 62 10 26 Robot Miss Streak 8 | 2 8 4 8 7 2 . . . . . . . 3 . . . . . . . . 1 . 3 . 3 5 3 7 6 2 2 Penetration Max 2 | . . . . . . . . . . . . . . . . . . . . . . . . 1 . . 1 1 . 2 . . Secondary Targets 54 | . 3 2 1 1 . . . . . . . . . . . . . . . . . . . 2 . . . . . 45 . . Max Gunslinging Chain 2 | . 1 1 1 1 . . . . . . . . . . . . . . . . . . . 1 . . . . . 2 . . Shots Hit Robots 1774 | 16 103 39 49 123 16 . 11 4 7 8 9 . 7 . 11 . 4 . 3 . . 5 . 75 . 7 29 11 12 1164 24 37 Core Hits 1161 | 8 65 52 54 127 6 . . . 1 5 1 . 13 . 1 . 2 . 1 . . 1 . 31 . 4 24 8 25 665 16 51 Critical Kills 111 | . . . . 1 . . . . 1 1 1 . 1 . 1 . 1 . . . . . . 4 . 1 10 4 11 72 . 2 Critical Parts Destroyed 138 | . . . . . . . 6 . 2 2 4 . . . 3 . 2 . 1 . . 1 . 10 . 1 14 . 17 75 . . Critical Strikes 303 | . 1 . . 1 . . 6 . 3 3 5 . 1 . 4 . 3 . 1 . . 1 . 19 . 2 25 4 31 187 3 3 Meltdown 4 | . . . . 1 . . . . . . . . . . . . . . . . . . . . . . . 1 . . . 2 Destroy 253 | . . . . . . . . . . . . . . . . . . . . . . . . 19 . 2 24 3 31 174 . . Blast 15 | . . . . . . . . . . . . . . . . . . . . . . . . . . . . . . 12 2 1 Corrupt 3 | . 1 . . . . . . . . . . . . . . . . . . . . . . . . . . . . 1 1 . Smash 27 | . . . . . . . 6 . 3 3 5 . 1 . 4 . 3 . 1 . . 1 . . . . . . . . . . Sever 1 | . . . . . . . . . . . . . . . . . . . . . . . . . . . 1 . . . . . Melee Attacks 206 | . . 2 . . . . 46 . 16 12 17 . 16 1 21 . 14 3 2 . 6 19 . 2 . 7 16 . . 6 . . Impact 175 | . . . . . . . 46 . 16 12 17 . 16 1 21 . 14 3 2 . 6 19 . 2 . . . . . . . . Slashing 31 | . . 2 . . . . . . . . . . . . . . . . . . . . . . . 7 16 . . 6 . . Piercing . | . . . . . . . . . . . . . . . . . . . . . . . . . . . . . . . . . Sneak Attacks 39 | . . . . . . . 5 . 4 1 3 . 5 . 4 . 1 . 1 . . 2 . . . . 12 . . 1 . . Combat Hostiles 6 | . . . . . . . 1 . 2 . 1 . 1 . . . 1 . . . . . . . . . . . . . . . Follow-up Attacks . | . . . . . . . . . . . . . . . . . . . . . . . . . . . . . . . . . Damage Inflicted 100037 | 164 1111 515 644 2402 358 . 971 1206 725 706 629 . 1389 . 913 . 302 . 155 . . 540 . 2526 . 293 1655 436 332 74542 2183 5340 Guns 51928 | 164 1096 510 641 1134 . . . . . . . . . . . . . . . . . . . 2526 . 238 26 256 81 44688 65 503 Cannons 14503 | . . . . 1256 328 . . . . . . . . . . . . . 65 . . . . . . . 311 180 251 9221 2077 814 Explosions 26346 | . . . . . . . . 1206 . 207 . . 582 . . . . . . . . . . . . . 212 . . 20437 41 3661 Melee 6833 | . . . . . . . 971 . 725 499 629 . 807 . 913 . 302 . 90 . . 540 . . . 55 1106 . . 196 . . Ramming 427 | . 15 5 3 12 30 . . . . . . . . . . . . . . . . . . . . . . . . . . 362 Kinetic 57370 | 77 278 . 76 . . . . . . . . . . . . . . . . . . . . 2526 . 238 191 256 287 52044 1273 124 Thermal 7364 | 87 720 510 565 2390 328 . . . . . . . . . . . . . 65 . . . . . . . 146 180 45 834 804 690 Explosive 26093 | . . . . . . . . 1206 . 207 . . 582 . . . . . . . . . . . . . . . . 20437 . 3661 Electromagnetic 1686 | . 98 . . . . . . . . . . . . . . . . . . . . . . . . . 212 . . 1031 106 239 Impact 5476 | . . . . . . . 971 . 725 499 629 . 807 . 913 . 302 . 90 . . 540 . . . . . . . . . . Slashing 1357 | . . . . . . . . . . . . . . . . . . . . . . . . . . 55 1106 . . 196 . . Piercing . | . . . . . . . . . . . . . . . . . . . . . . . . . . . . . . . . . Entropic 264 | . . . . . . . . . . . . . . . . . . . . . . . . . . . . . . . . 264 Highest Corruption 36 | . 1 1 . . . . 1 1 2 2 2 2 . . . 10 10 10 10 10 10 . . . . . . . . 36 . 17 Average Corruption 13 | . 1 1 . . . . 1 1 1 2 2 2 . . . 10 10 10 10 10 10 . . . . . . . . 21 . 8 Corruption Purged . | . . . . . . . . . . . . . . . . . . . . . . . . . . . . . . . . . Corruption Blocked . | . . . . . . . . . . . . . . . . . . . . . . . . . . . . . . . . . Effects 375 | . . 10 . . . . 1 3 4 4 6 . . . . 3 16 8 5 3 10 . . . . . . . . 286 . 16 Message Errors 72 | . . 1 . . . . . 1 2 . 2 . . . . . 5 3 2 1 1 . . . . . . . . 51 . 3 Matter Fused 69 | . . 1 . . . . 1 1 . 2 . . . . . . 3 1 . 1 1 . . . . . . . . 55 . 3 Heat Flow Errors 42 | . . 2 . . . . . . . . 1 . . . . . 3 1 . . . . . . . . . . . 34 . 1 Energy Discharges 37 | . . 1 . . . . . . 2 . 1 . . . . . 2 . 1 . 1 . . . . . . . . 27 . 2 Parts Rejected 5 | . . . . . . . . . . . . . . . . . . . . . 1 . . . . . . . . 4 . . Parts Fused 3 | . . . . . . . . . . . . . . . . . . . . . . . . . . . . . . 2 . 1 Data Loss (minor) 40 | . . 3 . . . . . 1 . 1 2 . . . . 1 2 2 . . 2 . . . . . . . . 23 . 3 Data Loss (major) 14 | . . 1 . . . . . . . 1 . . . . . . . 1 1 1 1 . . . . . . . . 7 . 1 Misfires 2 | . . 1 . . . . . . . . . . . . . . . . 1 . . . . . . . . . . . . . Alerts 6 | . . . . . . . . . . . . . . . . . . . . . 1 . . . . . . . . 5 . . Misdirections 37 | . . . . . . . . . . . . . . . . 2 1 . . . 2 . . . . . . . . 31 . 1 Weapon Failures 48 | . . . . . . . . . . . . . . . . . . . . . . . . . . . . . . 47 . 1 Overload Shots . | . . . . . . . . . . . . . . . . . . . . . . . . . . . . . . . . . Overflow Damage 5647 | . . . . 20 . . 791 . 516 160 328 . 269 . 413 . 120 . 94 . . 192 . . . . 22 3 5 2492 54 168 Projectiles 1603 | . . . . 20 . . . . 38 . . . . . . . . . 4 . . . . . . . 13 3 5 1466 54 . Explosions 1053 | . . . . . . . . . . . . . . . . . . . . . . . . . . . 8 . . 900 . 145 Melee 2991 | . . . . . . . 791 . 478 160 328 . 269 . 413 . 120 . 90 . . 192 . . . . 1 . . 126 . 23 Knockbacks 50 | . . . . . 1 . 4 . 3 2 1 . 1 . . . 1 . . . . 2 . . . . 7 . . 25 2 1 Impact 15 | . . . . . 1 . 4 . 2 2 1 . 1 . . . 1 . . . . 2 . . . . . . . . . 1 Kinetic 32 | . . . . . . . . . . . . . . . . . . . . . . . . . . . 7 . . 23 2 . Secondary 3 | . . . . . . . . . 1 . . . . . . . . . . . . . . . . . . . . 2 . . Self-Inflicted Damage 808 | . 86 . . . . . . . . . . . . . . . . . . . . . . . . . 116 . . 211 . 395 Shots 13 | . 2 . . . . . . . . . . . . . . . . . . . . . . . . . 2 . . 2 . 7 Rammed 34 | . 8 1 1 5 4 . . . . . . . . . . . . . . . . . . . . . . . . . . 15 Targets Rammed 34 | . 8 1 1 5 4 . . . . . . . . . . . . . . . . . . . . . . . . . . 15 Kicked . | . . . . . . . . . . . . . . . . . . . . . . . . . . . . . . . . . Crushed . | . . . . . . . . . . . . . . . . . . . . . . . . . . . . . . . . . Highest Temperature 419 | 40 406 257 132 309 165 . . . . 6 179 . 6 . . . 148 152 107 . 29 39 2 24 . . 156 179 265 286 299 419 Average Temperature 86 | 16 82 89 52 79 59 . . . . 4 103 . 5 . . . 38 85 54 . 15 12 2 4 . . 60 54 82 96 113 100 Received Heat Transfer 2381 | . 345 165 30 375 27 . . . 27 63 . . 117 . . . 18 9 . . 36 9 . 18 . . 75 9 9 185 27 837 Effects 7 | . 3 . . . . . . . . . . . . . . . . . . . . . . . . . . . 2 . . 2 Shutdowns 2 | . 1 . . . . . . . . . . . . . . . . . . . . . . . . . . . . . . 1 Energy Bleed 1 | . 1 . . . . . . . . . . . . . . . . . . . . . . . . . . . . . . . Interference 3 | . 1 . . . . . . . . . . . . . . . . . . . . . . . . . . . 2 . . . Matter Decay 1 | . . . . . . . . . . . . . . . . . . . . . . . . . . . . . . . . 1 Siege Activations . | . . . . . . . . . . . . . . . . . . . . . . . . . . . . . . . . . Martial Activations . | . . . . . . . . . . . . . . . . . . . . . . . . . . . . . . . . . Shielding Activations . | . . . . . . . . . . . . . . . . . . . . . . . . . . . . . . . . . Robots Disrupted 1 | . . . . . . . . . . . . . . . . . . . . . . . . . . . 1 . . . . . Combat Hostiles 1 | . . . . . . . . . . . . . . . . . . . . . . . . . . . 1 . . . . . Robots Corrupted 35 | . . . . . . . 7 . 6 3 4 . 2 . 3 . 2 . 1 . . 3 . . . . . . . 3 . 1 Combat Hostiles 18 | . . . . . . . 3 . 3 3 4 . 1 . . . . . . . . . . . . . . . . 3 . 1 Parts Fried 53 | . . . . . . . 3 . 8 5 4 . 2 . 9 . 4 . . . . 5 . . . . 1 . . 12 . . Impact Corruptions 85 | . . . . . . . 20 . 12 4 7 . 8 . 8 . 6 . 10 . . 6 . . . . . . . 2 . 2 Robots Melted 4 | . . . . 1 . . . . . . . . . . . . . . . . . . . . . . . 1 . . . 2 Combat Hostiles 4 | . . . . 1 . . . . . . . . . . . . . . . . . . . . . . . 1 . . . 2 Parts Melted 13 | . 1 . . 6 1 . . . . . . . . . . . . . . . . . . . . . 1 2 . 1 . 1 Heat Transferred 8767 | 200 1280 645 695 3635 592 . . . . . . . . . . . . . 100 . . . . . . . 148 148 37 400 500 387 Parts Sabotaged 4 | . . . . . . . . . . . . . . . . . . . . . . . . . . . . . . . . 4 Parts Stolen . | . . . . . . . . . . . . . . . . . . . . . . . . . . . . . . . . . Parts Stripped . | . . . . . . . . . . . . . . . . . . . . . . . . . . . . . . . . . Power Chain Reactions 1 | . . . . . . . . . . . . . . . . . . . . . . . . . . . . . . . 1 . Alert | -11 -10 -10 -9 -9 -9 -9 -6 -6 -6 -6 -6 -6 -6 -5 -5 -5 -5 -5 -5 -5 -4 -4 -4 -4 -3 -3 -3 -2 -2 -2 -1 -1 ------- Run | Yrd Mat Min Mat Sto Rec Scr Fac Was Fac Low Low Zio Dee Pro Fac Was Fac Upp Upp Zhi Pro Fac Upp War Pro Res Tes Res Qua Frg Acc Com Maximum Alert Level 5 | . . . . 2 1 . . . 1 . . . . . . . . . . . . . . . . . 2 1 2 5 5 5 Low Security (%) 45 | 100 100 100 100 16 92 . 100 100 54 . . . . . 100 100 100 . . . . 100 . . . 100 70 80 11 . . . Level 1 6 | . . . . 17 7 . . . 45 . . . . . . . . . . . . . . . . . 16 20 51 1 . . Level 2 8 | . . . . 66 . . . . . . . . . . . . . . . . . . . . . . 13 . 36 3 . . Level 3 3 | . . . . . . . . . . . . . . . . . . . . . . . . . . . . . . 9 . . Level 4 2 | . . . . . . . . . . . . . . . . . . . . . . . . . . . . . . 6 . . Level 5 30 | . . . . . . . . . . . . . . . . . . . . . . . . . . . . . . 78 100 12 High Security 3 | . . . . . . . . . . . . . . . . . . . . . . . . . . . . . . . . 87 Max Security . | . . . . . . . . . . . . . . . . . . . . . . . . . . . . . . . . . Peak Influence 9565 | 15 167 91 191 532 225 . 48 34 367 . . . . . 64 16 72 . . . . 172 . . . 49 425 241 514 9565 6812 6282 Initial 5714 | . . 43 . 67 195 . . 10 . . . . . . . 16 . . . . . 56 . . . 47 10 238 81 288 5714 4359 Average 1780 | 2 51 26 89 361 91 . 10 11 166 . . . . . 26 10 24 . . . . 60 . . . 27 118 122 331 3851 6171 5494 Influence Increases 21392 | 25 681 227 326 991 273 . 257 44 542 621 321 . . 40 252 . 211 60 90 . 150 258 . 491 90 42 594 137 749 10327 1360 2233 Destroy 0b10 Robot/C 9240 | . 400 180 180 560 100 . 60 . 200 280 220 . . 40 40 . 20 . . . . . . 240 . . 180 60 200 5680 120 480 Destroy 0b10 Robot/NC 675 | 25 35 10 30 80 . . 20 . 10 5 . . . . 30 . 15 . . . . 25 . 10 . 15 20 15 5 270 40 15 Destroy Leader 1538 | . 88 30 48 166 . . 34 . 54 40 30 . . . 16 . 4 . . . . 10 . . . 4 22 32 100 750 48 62 Allied During Kill 598 | . . . . . 5 . . . 180 296 71 . . . . . . . . . . . . 46 . . . . . . . . Successful Hack 210 | . 7 6 8 20 18 . 30 . 4 . . . . . 52 . 41 . . . . . . . . . . . 24 . . . Select Force Hacks 270 | . 60 . . 60 150 . . . . . . . . . . . . . . . . . . . . . . . . . . . Disable Machine 1410 | . 30 . 15 105 . . 45 . 30 . . . . . 15 . 15 . . . . . . . . . 165 . 90 750 90 60 Anti-Garrison Action 150 | . . . . . . . . . . . . . . . . . . . . . . . . . . . . . . 150 . . Destroy Structure 2676 | . 1 1 . . . . 23 44 19 . . . . . 24 . 26 . . . . 28 . . . 8 192 30 60 1647 252 321 Partial Spotted 345 | . . . . . . . 15 . 30 . . . . . 45 . 45 . . . . 15 . . . 15 . . 90 60 15 15 Lose Combat Pursuer 3480 | . 60 . 45 . . . 30 . 15 . . . . . 30 . 45 60 90 . 150 180 . 195 90 . 15 . 180 1020 195 1080 Active Sensor Use 800 | . . . . . . . . . . . . . . . . . . . . . . . . . . . . . . . 600 200 Influence Decreases 15190 | 25 570 337 167 651 773 . 227 74 222 397 454 411 . 40 206 46 149 97 35 80 60 191 99 314 255 93 188 417 382 1314 4073 2843 Entered New Map 8418 | . . 68 1 93 305 . . 20 . 119 104 411 . . . 30 . 24 6 80 . 34 59 58 235 23 9 187 64 224 3811 2453 Time Decay 5199 | 25 418 269 166 518 362 . 219 54 142 198 230 . . 40 145 . 139 73 29 . 50 147 40 206 20 70 179 80 318 770 262 30 Lost Part 630 | . 40 . . 40 . . . . . . . . . . . . 10 . . . 10 . . . . . . . . 170 . 360 Lost Ally 425 | . . . . . . . 8 . 80 80 120 . . . 61 16 . . . . . 10 . 50 . . . . . . . . Purge Threat 518 | . 112 . . . 106 . . . . . . . . . . . . . . . . . . . . . . 150 . 150 . . Squads Dispatched 66 | . 5 . 1 5 . . 6 . 4 . . . . . 7 . 1 . . . . 1 . . . 1 4 2 1 7 15 6 Investigation 31 | . 4 . . 3 . . 4 . 3 . . . . . 4 . . . . . . . . . . 1 . 1 1 1 7 2 Extermination 13 | . . . . . . . 2 . 1 . . . . . 2 . 1 . . . . 1 . . . . 2 1 . . 3 . Reinforcement 9 | . 1 . 1 . . . . . . . . . . . 1 . . . . . . . . . . . 1 . . 4 1 . Assault 11 | . . . . 1 . . . . . . . . . . . . . . . . . . . . . . . . . 2 4 4 Garrison 2 | . . . . 1 . . . . . . . . . . . . . . . . . . . . . . 1 . . . . . Intercept . | . . . . . . . . . . . . . . . . . . . . . . . . . . . . . . . . . Searches Triggered . | . . . . . . . . . . . . . . . . . . . . . . . . . . . . . . . . . Construction Impeded 2 | . . . . . . . . . . . . . . . . . . . . . . . . . . . 1 . . 1 . . Haulers Reinforced 1 | . . . . . . . . . . . . . . . 1 . . . . . . . . . . . . . . . . . Active Scanning Responses 8 | . . . . . . . . . . . . . . . . . . . . . . . . . . . . . . . 6 2 Cargo Convoy Interrupts . | . . . . . . . . . . . . . . . . . . . . . . . . . . . . . . . . . Stealth | -11 -10 -10 -9 -9 -9 -9 -6 -6 -6 -6 -6 -6 -6 -5 -5 -5 -5 -5 -5 -5 -4 -4 -4 -4 -3 -3 -3 -2 -2 -2 -1 -1 --------- Run | Yrd Mat Min Mat Sto Rec Scr Fac Was Fac Low Low Zio Dee Pro Fac Was Fac Upp Upp Zhi Pro Fac Upp War Pro Res Tes Res Qua Frg Acc Com Distress Signals 32 | . 1 . . 4 . . . . 1 . . . . . . . . . . . . . . 1 . 1 . . 1 12 1 10 Communications Jammed . | . . . . . . . . . . . . . . . . . . . . . . . . . . . . . . . . . Distress Signals . | . . . . . . . . . . . . . . . . . . . . . . . . . . . . . . . . . Times Spotted 1037 | . 29 9 13 36 4 . 10 6 3 10 4 . 12 . 9 5 13 10 9 . 13 16 . 76 9 4 19 4 20 528 27 139 Peak Tracking Total 31 | . 5 2 6 6 1 . 2 6 3 4 3 . 5 . 7 5 7 5 4 . 9 8 . 13 9 2 3 1 7 13 9 31 Tactical Retreats 99 | . 3 . 2 . . . 1 1 1 . . . . . 1 . 2 3 1 . 4 3 . 4 3 . 1 . 3 42 7 17 Traps | -11 -10 -10 -9 -9 -9 -9 -6 -6 -6 -6 -6 -6 -6 -5 -5 -5 -5 -5 -5 -5 -4 -4 -4 -4 -3 -3 -3 -2 -2 -2 -1 -1 ------- Run | Yrd Mat Min Mat Sto Rec Scr Fac Was Fac Low Low Zio Dee Pro Fac Was Fac Upp Upp Zhi Pro Fac Upp War Pro Res Tes Res Qua Frg Acc Com Traps Triggered 32 | . 2 . . 4 . . 1 . 2 . . . . . 1 . . . . . . . . . . . 1 . 1 14 3 3 Indirectly 1 | . . . . . . . . . . . . . . . . . . . . . . . . . . . 1 . . . . . Trap Hack Attempts . | . . . . . . . . . . . . . . . . . . . . . . . . . . . . . . . . . Triggered . | . . . . . . . . . . . . . . . . . . . . . . . . . . . . . . . . . Disarmed . | . . . . . . . . . . . . . . . . . . . . . . . . . . . . . . . . . Reprogrammed . | . . . . . . . . . . . . . . . . . . . . . . . . . . . . . . . . . Reused 1 | . . . . . . . . . . . . . 1 . . . . . . . . . . . . . . . . . . . Traps Extracted . | . . . . . . . . . . . . . . . . . . . . . . . . . . . . . . . . . Installed 1 | . . . . . . . . . . . . . 1 . . . . . . . . . . . . . . . . . . . Triggered . | . . . . . . . . . . . . . . . . . . . . . . . . . . . . . . . . . Most Traps Carried 3 | . . . . . . 3 3 3 3 3 3 3 3 2 2 2 2 2 2 2 . . . . . . . . . . . . Machines | -11 -10 -10 -9 -9 -9 -9 -6 -6 -6 -6 -6 -6 -6 -5 -5 -5 -5 -5 -5 -5 -4 -4 -4 -4 -3 -3 -3 -2 -2 -2 -1 -1 ---------- Run | Yrd Mat Min Mat Sto Rec Scr Fac Was Fac Low Low Zio Dee Pro Fac Was Fac Upp Upp Zhi Pro Fac Upp War Pro Res Tes Res Qua Frg Acc Com Machines Disabled 111 | . 2 . 1 7 . . 3 . 2 . 1 . 1 . 1 . 1 . . . . . . 2 . . 13 . 6 61 6 4 Max in Single Turn 6 | . 2 . 1 1 . . 1 . 1 . . . 1 . 1 . 1 . . . . . . 1 . . 3 . 1 6 1 1 Garrison Access 4 | . . . . 1 . . . . . . . . . . 1 . . . . . . 1 . . . . . . . 1 . . Machines Repaired . | . . . . . . . . . . . . . . . . . . . . . . . . . . . . . . . . . Machines Dismantled 3 | . . . . 3 . . . . . . . . . . . . . . . . . . . . . . . . . . . . Machines Sabotaged . | . . . . . . . . . . . . . . . . . . . . . . . . . . . . . . . . . Overloaded Fab Kills . | . . . . . . . . . . . . . . . . . . . . . . . . . . . . . . . . . Hacking | -11 -10 -10 -9 -9 -9 -9 -6 -6 -6 -6 -6 -6 -6 -5 -5 -5 -5 -5 -5 -5 -4 -4 -4 -4 -3 -3 -3 -2 -2 -2 -1 -1 --------- Run | Yrd Mat Min Mat Sto Rec Scr Fac Was Fac Low Low Zio Dee Pro Fac Was Fac Upp Upp Zhi Pro Fac Upp War Pro Res Tes Res Qua Frg Acc Com Machines Accessed 109 | . 8 2 2 14 12 2 12 . 7 1 . . . . 13 . 7 2 . 4 . 5 . 2 . 1 1 3 3 4 4 . Terminals 58 | . 6 2 2 11 6 . 7 . 4 . . . . . 6 . 1 . . . . 3 . . . . 1 2 1 2 4 . Fabricators 4 | . . . . . . . 1 . 1 . . . . . . . 1 . . . . . . . . . . . . 1 . . Repair Stations 3 | . . . . . . . . . . . . . . . 1 . 1 . . . . . . . . . . . 1 . . . Recycling Units 26 | . 2 . . 2 6 . 4 . 2 . . . . . 3 . 3 . . . . 1 . . . 1 . 1 . 1 . . Scanalyzers . | . . . . . . . . . . . . . . . . . . . . . . . . . . . . . . . . . Garrison Access 7 | . . . . 1 . . . . . . . . . . 3 . 1 . . . . 1 . . . . . . 1 . . . Total Hacks 296 | . 32 5 3 40 33 5 29 . 18 1 . . . . 35 . 19 8 . 17 . 17 . 2 . 4 3 5 4 7 9 . Successful 141 | . 16 2 1 15 18 5 13 . 8 1 . . . . 13 . 8 8 . 17 . 5 . 2 . 2 . 4 1 2 . . Failed 154 | . 16 2 2 25 15 . 16 . 10 . . . . . 22 . 11 . . . . 12 . . . 2 3 1 3 5 9 . Catastrophic 28 | . 2 . 1 4 2 . 2 . 2 . . . . . 4 . 1 . . . . . . . . 2 1 1 2 1 3 . Database Lockouts 1 | . . 1 . . . . . . . . . . . . . . . . . . . . . . . . . . . . . . Manual 142 | . 16 5 3 23 19 . 18 . 11 . . 5 . . 14 . 8 . . . . 4 . . . 1 3 4 . 4 4 . Terminals 165 | . 26 5 3 28 16 . 20 . 11 . . . . . 23 . 2 . . . . 12 . . . . 3 3 1 3 9 . Fabricators 8 | . . . . . . . 3 . 1 . . . . . . . 2 . . . . . . . . . . . . 2 . . Repair Stations 7 | . . . . . . . . . . . . . . . 1 . 4 . . . . . . . . . . . 2 . . . Recycling Units 71 | . 6 . . 10 17 . 6 . 6 . . . . . 7 . 8 . . . . 3 . . . 4 . 2 . 2 . . Scanalyzers . | . . . . . . . . . . . . . . . . . . . . . . . . . . . . . . . . . Garrison Access 12 | . . . . 2 . . . . . . . . . . 4 . 3 . . . . 2 . . . . . . 1 . . . Terminal Hacks 64 | . 6 2 1 3 3 5 2 . 4 1 . . . . 6 . . 8 . 17 . 1 . 2 . . . 2 . 1 . . Record 16 | . . . . . . 4 . . . . . . . . . . . 7 . 5 . . . . . . . . . . . . Part Schematic 4 | . . . . . . . . . . . . . . . . . . . . 4 . . . . . . . . . . . . Robot Analysis 7 | . . 2 . . 1 . . . . . . . . . . . . . . 4 . . . . . . . . . . . . Prototype ID Bank 9 | . 2 . . . . . 1 . 1 . . . . . 1 . . . . 4 . . . . . . . . . . . . Open Door 6 | . . . . 2 . . . . . 1 . . . . . . . 1 . . . . . 2 . . . . . . . . Branch Access Points 6 | . . . 1 . . . 1 . 1 . . . . . 1 . . . . . . 1 . . . . . 1 . . . . Emergency Access Points 1 | . 1 . . . . . . . . . . . . . . . . . . . . . . . . . . . . . . . Terminal Index 2 | . 1 . . . 1 . . . . . . . . . . . . . . . . . . . . . . . . . . . Unreport Threat 4 | . 1 . . . 1 . . . . . . . . . . . . . . . . . . . . . . 1 . 1 . . Locate Traps 1 | . . . . . . . . . 1 . . . . . . . . . . . . . . . . . . . . . . . Recall Investigation 1 | . . . . . . . . . 1 . . . . . . . . . . . . . . . . . . . . . . . Hauler Manifests 2 | . 1 . . . . . . . . . . . . . 1 . . . . . . . . . . . . . . . . . Registered Components 1 | . . . . . . . . . . . . . . . 1 . . . . . . . . . . . . . . . . . Zone Layout 3 | . . . . 1 . . . . . . . . . . 2 . . . . . . . . . . . . . . . . . Proto ID Catalog 1 | . . . . . . 1 . . . . . . . . . . . . . . . . . . . . . . . . . . Fabricator Hacks 3 | . . . . . . . 1 . 1 . . . . . . . 1 . . . . . . . . . . . . . . . Network Status 3 | . . . . . . . 1 . 1 . . . . . . . 1 . . . . . . . . . . . . . . . Repair Station Hacks 3 | . . . . . . . . . . . . . . . . . 2 . . . . . . . . . . . 1 . . . Scan Component 2 | . . . . . . . . . . . . . . . . . 1 . . . . . . . . . . . 1 . . . Repair 1 | . . . . . . . . . . . . . . . . . 1 . . . . . . . . . . . . . . . Recycling Unit Hacks 11 | . 1 . . 2 4 . . . . . . . . . . . 2 . . . . . . . . 1 . 1 . . . . Retrieve Components 11 | . 1 . . 2 4 . . . . . . . . . . . 2 . . . . . . . . 1 . 1 . . . . Scanalyzer . | . . . . . . . . . . . . . . . . . . . . . . . . . . . . . . . . . Garrison Access Hacks 3 | . . . . 1 . . . . . . . . . . 1 . . . . . . 1 . . . . . . . . . . Seal Access 3 | . . . . 1 . . . . . . . . . . 1 . . . . . . 1 . . . . . . . . . . Unauthorized Hacks 57 | . 9 . . 9 11 . 10 . 3 . . . . . 6 . 3 . . . . 3 . . . 1 . 1 . 1 . . Terminals 34 | . 7 . . 7 6 . 5 . 2 . . . . . 3 . 1 . . . . 3 . . . . . . . . . . Assimilate 3 | . . . . . . . 1 . 1 . . . . . . . . . . . . 1 . . . . . . . . . . Botnet 11 | . 1 . . 2 1 . 1 . 1 . . . . . 2 . 1 . . . . 2 . . . . . . . . . . Skim 20 | . 6 . . 5 5 . 3 . . . . . . . 1 . . . . . . . . . . . . . . . . . Fabricators 3 | . . . . . . . 2 . . . . . . . . . 1 . . . . . . . . . . . . . . . Liberate 1 | . . . . . . . 1 . . . . . . . . . . . . . . . . . . . . . . . . . Haulers 2 | . . . . . . . 1 . . . . . . . . . 1 . . . . . . . . . . . . . . . Repair Stations 1 | . . . . . . . . . . . . . . . 1 . . . . . . . . . . . . . . . . . Patch 1 | . . . . . . . . . . . . . . . 1 . . . . . . . . . . . . . . . . . Recycling Units 19 | . 2 . . 2 5 . 3 . 1 . . . . . 2 . 1 . . . . . . . . 1 . 1 . 1 . . Mask 1 | . . . . . . . . . . . . . . . . . 1 . . . . . . . . . . . . . . . Tunnel 9 | . 2 . . 2 5 . . . . . . . . . . . . . . . . . . . . . . . . . . . Fedlink 9 | . . . . . . . 3 . 1 . . . . . 2 . . . . . . . . . . 1 . 1 . 1 . . Scanalyzers . | . . . . . . . . . . . . . . . . . . . . . . . . . . . . . . . . . Garrison Access . | . . . . . . . . . . . . . . . . . . . . . . . . . . . . . . . . . Data Cores Recovered 3 | . . . . . . . . . . . . . . . 1 . 1 . . . . . . . . . . . . 1 . . Used 1 | . . . . . . . . . . . . . . . . . 1 . . . . . . . . . . . . . . . Hacking Detections 76 | . 7 2 2 11 8 . 10 . 5 . . . . . 9 . 4 . . . . 4 . . . . 1 2 3 4 4 . Full Trace Events 7 | . . . . 1 1 . 1 . 2 . . . . . 1 . . . . . . . . . . . . . . . 1 . Feedback Events 1 | . . . . . . . . . 1 . . . . . . . . . . . . . . . . . . . . . . . Corruption 1 | . . . . . . . . . 1 . . . . . . . . . . . . . . . . . . . . . . . Feedback Blocked . | . . . . . . . . . . . . . . . . . . . . . . . . . . . . . . . . . Robot Schematics Acquired 7 | . . . . . . . . . . . . . . . . . . . . . . . . . . . . . 4 3 . . Robots Built . | . . . . . . . . . . . . . . . . . . . . . . . . . . . . . . . . . Authchips . | . . . . . . . . . . . . . . . . . . . . . . . . . . . . . . . . . Time . | . . . . . . . . . . . . . . . . . . . . . . . . . . . . . . . . . Total Robot Build Rating . | . . . . . . . . . . . . . . . . . . . . . . . . . . . . . . . . . Part Schematics Acquired 27 | . . . . . . . . . . . . . . . . . . . . 4 . . . . . . . . 10 13 . . Parts Built . | . . . . . . . . . . . . . . . . . . . . . . . . . . . . . . . . . Authchips . | . . . . . . . . . . . . . . . . . . . . . . . . . . . . . . . . . Time . | . . . . . . . . . . . . . . . . . . . . . . . . . . . . . . . . . Total Part Build Rating . | . . . . . . . . . . . . . . . . . . . . . . . . . . . . . . . . . Parts Repaired 1 | . . . . . . . . . . . . . . . . . 1 . . . . . . . . . . . . . . . Time 47 | . . . . . . . . . . . . . . . . . 47 . . . . . . . . . . . . . . . Parts Recycled . | . . . . . . . . . . . . . . . . . . . . . . . . . . . . . . . . . Recycled Matter . | . . . . . . . . . . . . . . . . . . . . . . . . . . . . . . . . . Retrieved Matter . | . . . . . . . . . . . . . . . . . . . . . . . . . . . . . . . . . Retrieved Components 32 | . 3 . . 12 15 . . . . . . . . . . . . . . . . . . . . . . 2 . . . . Parts Scanalyzed . | . . . . . . . . . . . . . . . . . . . . . . . . . . . . . . . . . Part Schematics Acquired . | . . . . . . . . . . . . . . . . . . . . . . . . . . . . . . . . . Parts Damaged . | . . . . . . . . . . . . . . . . . . . . . . . . . . . . . . . . . Bothacking | -11 -10 -10 -9 -9 -9 -9 -6 -6 -6 -6 -6 -6 -6 -5 -5 -5 -5 -5 -5 -5 -4 -4 -4 -4 -3 -3 -3 -2 -2 -2 -1 -1 ------------ Run | Yrd Mat Min Mat Sto Rec Scr Fac Was Fac Low Low Zio Dee Pro Fac Was Fac Upp Upp Zhi Pro Fac Upp War Pro Res Tes Res Qua Frg Acc Com Used RIF Installer . | . . . . . . . . . . . . . . . . . . . . . . . . . . . . . . . . . Robots Hacked 1 | . . . . . . . . . . . . . . . . . . . . . . . . . . 1 . . . . . . Non-combat 1 | . . . . . . . . . . . . . . . . . . . . . . . . . . 1 . . . . . . Combat . | . . . . . . . . . . . . . . . . . . . . . . . . . . . . . . . . . Robot Hacks Applied 1 | . . . . . . . . . . . . . . . . . . . . . . . . . . 1 . . . . . . parse_system 1 | . . . . . . . . . . . . . . . . . . . . . . . . . . 1 . . . . . . Relay Couplers Released 3 | . . . . . . . . . . . . . . . . . . . . . . . . . . . . . . 3 . . Machine Destruction 3 | . . . . . . . . . . . . . . . . . . . . . . . . . . . . . . 3 . . Fabnet Peak Effective % . | . . . . . . . . . . . . . . . . . . . . . . . . . . . . . . . . . Robots Rewired 11 | . . . . . 5 . . . . . . . . . . . . . . . . . . 5 . . 1 . . . . . Allies Hacked 1 | . . . . . . . . . . . . . . . . . . . . . . . . 1 . . . . . . . . Hacks Repelled . | . . . . . . . . . . . . . . . . . . . . . . . . . . . . . . . . . Allies | -11 -10 -10 -9 -9 -9 -9 -6 -6 -6 -6 -6 -6 -6 -5 -5 -5 -5 -5 -5 -5 -4 -4 -4 -4 -3 -3 -3 -2 -2 -2 -1 -1 -------- Run | Yrd Mat Min Mat Sto Rec Scr Fac Was Fac Low Low Zio Dee Pro Fac Was Fac Upp Upp Zhi Pro Fac Upp War Pro Res Tes Res Qua Frg Acc Com Total Allies 35 | . . . . . 5 . 1 19 . . . 2 . . . 1 . . . . . 1 . 5 . . 1 . . . . . Largest Group 19 | . . . . . 5 5 2 19 19 14 10 6 5 4 4 1 . . . . . 1 . 5 . . 1 . . . . . Highest-Rated Group 702 | . . . . . 57 57 26 702 702 577 406 330 286 262 262 31 . . . . . 10 . 275 . . 141 . . . . . Highest-Rated Ally 141 | . . . . . 18 18 26 50 50 50 46 96 96 96 96 31 . . . . . 10 . 64 . . 141 . . . . . Total Orders 4 | . . . . . . . . . . . . . . . . . . . . . . . . 4 . . . . . . . . STAY 2 | . . . . . . . . . . . . . . . . . . . . . . . . 2 . . . . . . . . FOLLOW 2 | . . . . . . . . . . . . . . . . . . . . . . . . 2 . . . . . . . . Ally Attacks 323 | . . . . . 2 . 3 87 41 24 68 . 36 12 25 2 . . . . . . . 21 . . 2 . . . . . Total Damage 10522 | . . . . . 22 . 22 3217 670 1408 2023 . 1191 312 793 42 . . . . . . . 792 . . 30 . . . . . Kills 45 | . . . . . . . . 6 6 9 7 . 11 2 2 . . . . . . . . 2 . . . . . . . . Allies Corrupted 2 | . . . . . . . . . 1 . 1 . . . . . . . . . . . . . . . . . . . . . Allies Melted 2 | . . . . . . . . . . . . . . . 1 . . . . . . . . . . . . . . 1 . . Intel | -11 -10 -10 -9 -9 -9 -9 -6 -6 -6 -6 -6 -6 -6 -5 -5 -5 -5 -5 -5 -5 -4 -4 -4 -4 -3 -3 -3 -2 -2 -2 -1 -1 ------- Run | Yrd Mat Min Mat Sto Rec Scr Fac Was Fac Low Low Zio Dee Pro Fac Was Fac Upp Upp Zhi Pro Fac Upp War Pro Res Tes Res Qua Frg Acc Com Active Infowar (turns) 15557 | 51 635 . 404 103 . . 756 186 344 406 493 361 585 286 347 28 356 191 116 124 173 314 90 950 98 159 495 160 704 5548 566 528 Optics 12947 | . . . . . . . 501 186 344 406 493 361 585 286 347 28 356 191 116 124 173 314 90 950 98 159 495 160 704 5480 . . Sensors 6622 | . . . . . . . 622 186 234 406 492 361 15 286 299 28 342 191 116 124 173 314 90 378 97 159 495 160 694 360 . . A.S.S. 4655 | . . . . . . . . . . . . . . . . . . . . . . . . . . . . . . 3682 566 407 Terrain 2722 | 43 174 . . . . . . . . . . . . . . . . . . . . 141 90 245 95 159 495 160 483 156 479 2 Seismic 1348 | 51 635 . 404 103 . . 155 . . . . . . . . . . . . . . . . . . . . . . . . . Machine Analysis 99 | . . . . . . . 99 . . . . . . . . . . . . . . . . . . . . . . . . . Cloaking 2086 | . . . . . . . . . . . . . . . . . . . . . . . . . . . . . . 994 565 527 ECM 2 | . . . . . . . . . . . . . . . . . . . . . . . . . . . . . . 2 . . Robot Analysis Total 7 | . . 2 . . 1 . . . . . . . . . . . . . . 4 . . . . . . . . . . . . Derelict Logs Recovered 14 | . . 1 . . . . . . . 3 3 1 . 1 . . . 1 1 . 2 . 1 . . . . . . . . . Drone Launches . | . . . . . . . . . . . . . . . . . . . . . . . . . . . . . . . . . Drone Recoveries . | . . . . . . . . . . . . . . . . . . . . . . . . . . . . . . . . . Exploration | -11 -10 -10 -9 -9 -9 -9 -6 -6 -6 -6 -6 -6 -6 -5 -5 -5 -5 -5 -5 -5 -4 -4 -4 -4 -3 -3 -3 -2 -2 -2 -1 -1 ------------- Run | Yrd Mat Min Mat Sto Rec Scr Fac Was Fac Low Low Zio Dee Pro Fac Was Fac Upp Upp Zhi Pro Fac Upp War Pro Res Tes Res Qua Frg Acc Com Turns Passed 22465 | 140 1558 1030 409 1420 1303 2189 764 186 344 406 493 361 585 286 347 28 356 191 116 124 173 314 90 950 98 159 495 160 704 5548 566 572 Spaces Moved 33017 | 61 551 582 182 633 751 1119 1990 301 616 998 1207 801 1093 395 1020 89 779 595 318 196 518 1076 323 1694 370 379 980 520 1536 8784 1498 1062 Core 57 | 2 . . . . . . . . . . . . . . . . . . . . . . . . . . . . . . . 55 Treads 3877 | 59 551 582 182 633 751 1119 . . . . . . . . . . . . . . . . . . . . . . . . . . Legs . | . . . . . . . . . . . . . . . . . . . . . . . . . . . . . . . . . Wheels . | . . . . . . . . . . . . . . . . . . . . . . . . . . . . . . . . . Hover 16085 | . . . . . . . . . . . . . . . . . . . . . . . . 1011 370 379 980 520 1536 8784 1498 1007 Flight 12998 | . . . . . . . 1990 301 616 998 1207 801 1093 395 1020 89 779 595 318 196 518 1076 323 683 . . . . . . . . Fastest Speed 14 | 50 160 160 160 160 160 160 28 28 28 28 28 28 28 28 28 28 28 29 29 14 29 14 14 14 20 20 20 20 20 20 20 22 Average Speed 43 | 156 220 162 160 160 160 182 28 28 28 28 28 28 28 28 28 28 28 29 29 47 29 17 26 18 20 20 20 20 22 28 20 33 Slowest Speed 240 | 160 240 240 160 160 160 240 28 28 28 28 28 28 28 28 28 28 29 29 29 101 29 29 29 73 20 20 78 20 36 126 22 100 Overloaded Moves . | . . . . . . . . . . . . . . . . . . . . . . . . . . . . . . . . . Propulsion Burnouts . | . . . . . . . . . . . . . . . . . . . . . . . . . . . . . . . . . Robots Hopped 22 | . . . . . . . 4 . 1 . . . . . 2 2 7 . . . 3 1 . 2 . . . . . . . . Potential Cave-ins 18 | . . . . . . . . . . . . . . . . . . . . . . . . . . . . . . 14 4 . Cave-ins Triggered 2 | . . . . . . . . . . . . . . . . . . . . . . . . . . . . . . 2 . . Teleports 2 | . . . . . . . . . . . . . . . . . . . . . . . . . . . . . 1 1 . . Exploration Rate (%) 63 | 6 92 96 17 94 99 87 41 93 23 90 95 86 86 67 31 94 21 77 53 61 82 23 41 94 68 10 83 16 95 88 44 43 Regions Visited 32 Branch Regions 20 Pre-discovered Areas 18 | . 4 . . 2 6 . 1 . . . 1 1 . . . . . . . 3 . . . . . . . . . . . . Known Exits Taken 24 | . . 1 1 . 1 . . . 1 1 1 1 1 1 . . 1 1 1 1 1 1 1 1 1 1 1 1 1 1 1 . Unknown Exits Taken 4 | 1 1 . . 1 . 1 . . . . . . . . . . . . . . . . . . . . . . . . . . Scrap Searched 25 | . . 1 . . . 4 . . . 4 4 1 . 1 . . . 2 1 . 4 . 1 . 2 . . . . . . . Spaces Dug 209 | . . 1 . . . . 23 . 6 . 7 . 1 1 7 . 8 3 1 . 6 8 . 2 1 4 10 8 11 53 44 4 Terrain Destroyed 2004 | . . 1 . . . . 23 14 6 5 7 . 13 1 7 . 13 3 1 . 10 15 . 25 1 4 133 9 20 1463 95 135 Melee 82 | . . 1 . . . . 23 . 6 . 7 . 1 1 7 . 8 3 1 . 6 8 . 2 . 4 . . . 4 . . Projectile 486 | . . . . . . . . . . . . . . . . . 5 . . . 4 7 . 23 1 . 17 9 8 304 95 13 AOE 1395 | . . . . . . . . 14 . 5 . . 12 . . . . . . . . . . . . . 104 . . 1138 . 122 Terrain Rammed . | . . . . . . . . . . . . . . . . . . . . . . . . . . . . . . . . . Walls Destroyed . | . . . . . . . . . . . . . . . . . . . . . . . . . . . . . . . . . Machines Disabled . | . . . . . . . . . . . . . . . . . . . . . . . . . . . . . . . . . Actions | -11 -10 -10 -9 -9 -9 -9 -6 -6 -6 -6 -6 -6 -6 -5 -5 -5 -5 -5 -5 -5 -4 -4 -4 -4 -3 -3 -3 -2 -2 -2 -1 -1 --------- Run | Yrd Mat Min Mat Sto Rec Scr Fac Was Fac Low Low Zio Dee Pro Fac Was Fac Upp Upp Zhi Pro Fac Upp War Pro Res Tes Res Qua Frg Acc Com Total 38454 | 81 755 622 239 828 829 1265 2109 397 769 1106 1342 937 1346 567 1053 89 881 609 336 227 525 1153 327 2228 390 434 1191 548 1838 10537 1688 1208 Wait 2660 | . 69 2 5 12 19 113 31 87 93 88 115 128 205 172 7 . 86 12 13 . . 23 5 384 18 20 91 2 209 575 63 13 Move 32942 | 60 550 581 181 632 750 1118 1982 300 613 997 1206 800 1092 394 1016 85 764 594 317 195 512 1073 322 1690 369 378 979 519 1535 8779 1497 1062 Hop 19 | . . . . . . . 4 . 1 . . . . . 2 1 7 . . . 2 1 . 1 . . . . . . . . Pick Up 282 | 2 26 3 9 13 1 11 9 1 2 . . 4 5 . 1 1 1 . . 10 . 11 . 18 . 6 5 3 12 98 13 17 Fast Attach 99 | 7 . 1 . 5 . 2 5 1 . . . . 3 . . . 3 . 1 3 1 1 . 6 . . 3 1 6 39 2 9 Attach 121 | . 7 . 2 3 . 3 10 1 . . . 1 4 . 2 1 . . . 2 . 4 . 7 . 2 3 1 7 36 6 19 Detach 54 | . 2 . . 1 . 3 3 1 . . . . 3 . 2 . 1 . . . . 1 . 5 . . 2 . 5 18 4 3 Swap 264 | . 5 5 8 26 3 1 3 1 4 7 3 1 3 . 1 . . . 2 5 . 4 . 11 2 6 11 2 10 113 12 15 Drop 301 | . 10 6 4 22 3 12 16 1 4 1 1 3 5 . 1 1 . . . 12 . 9 . 25 . 6 14 2 18 110 6 9 Fire 1222 | 12 78 21 29 85 11 . . 4 . 1 . . 9 . . . 5 . 1 . 4 7 . 56 1 9 46 18 36 687 59 43 Melee 206 | . . 2 . . . . 46 . 16 12 17 . 16 1 21 . 14 3 2 . 6 19 . 2 . 7 16 . . 6 . . Ram 15 | . . . . . . . . . . . . . . . . . . . . . . . . . . . . . . . . 15 Kick . | . . . . . . . . . . . . . . . . . . . . . . . . . . . . . . . . . Crush 19 | . 8 1 1 5 4 . . . . . . . . . . . . . . . . . . . . . . . . . . . Escape Stasis 99 | . . . . . . . . . 36 . . . . . . . . . . . . . . . . . 8 . . 26 26 3 Rewire 74 | . . . . . 38 . . . . . . . . . . . . . . . . . . 23 . . 13 . . . . . Trap 1 | . . . . . . . . . . . . . 1 . . . . . . . . . . . . . . . . . . . Miscellaneous 76 | . . . . 24 . 2 . . . . . . . . . . . . . . . . . . . . . . . 50 . . Route ------- -11/Scrapyard -10/Materials (discovered 4 exits: *Mat x3 / *Min) -10/Mines (discovered 2 exits: *Mat x2) -9/Materials (discovered 4 exits: Mat / Min / *Sto x2) -9/Storage (discovered 2 exits: *Mat / *Rec) -9/Recycling (discovered 2 exits: *Fac / *Scr) -9/Scraptown (discovered 2 exits: *Fac x2) -6/Factory (discovered 4 exits: *Fac x2 / *Low x2) -6/Waste -6/Factory (discovered 2 exits: *Low x2) -6/Lower Caves -6/Lower Caves (discovered 2 exits: *Fac / *Zio) -6/Zion (discovered 2 exits: *Dee / [*Pro]) -6/Deep Caves -5/Proximity Caves -5/Factory (discovered 5 exits: *Fac / Upp x2 / Ext x2) -5/Waste -5/Factory (discovered 2 exits: *Fac / *Upp) -5/Upper Caves -5/Upper Caves (discovered 2 exits: *Fac / *Zhi) -5/Zhirov -4/Proximity Caves -4/Factory (discovered 3 exits: *Upp x2 / Arm) -4/Upper Caves -4/Warlord -3/Proximity Caves -3/Research -3/Testing -2/Research (discovered 3 exits: *Acc / *Qua x2) -2/Quarantine (discovered 3 exits: *Acc / [*Sec] / *Frg) -2/Protoforge -1/Access -1/Command History --------- Turn | Location | Event 7 | -11/Scrapyard | Discovered new exit (range 15) 141 | -11/Scrapyard | Entered Materials 360 | -10/Materials | Build established: Mutant 786 | -10/Materials | Core integrity fell below 50% 808 | -10/Materials | Identified exit to Materials 854 | -10/Materials | Learned location of 1 exit from Recycling 889 | -10/Materials | Learned location of Recycling (-9) 916 | -10/Materials | Learned 4 Materials zone layouts 958 | -10/Materials | Learned Storage security intel 1067 | -10/Materials | Learned location of 1 exit from Storage 1562 | -10/Materials | Discovered new exit (range 12) 1699 | -10/Materials | Entered Mines 2213 | -10/Mines | Core integrity fell below 20% 2428 | -10/Mines | Central database locked down 2546 | -10/Mines | Learned Materials trap positions 2729 | -10/Mines | Entered Materials 2729 | -9/Materials | Evolved 2 slots: Propulsion x1, Utility x1 2730 | -9/Materials | Identified exit to Mines 2731 | -9/Materials | Identified exit to Materials 2732 | -9/Materials | Loaded intel: 16 trap records 2755 | -9/Materials | Identified exit to Storage 3138 | -9/Materials | Entered Storage 3197 | -9/Storage | Garrison activated, responded to threat 3603 | -9/Storage | Build established: Scavenger-Mutant 4101 | -9/Storage | Build established: Mutant 4338 | -9/Storage | First assault squad dispatched 4555 | -9/Storage | Used back door to open Recycling access 4555 | -9/Storage | Discovered new exit (range 3) 4558 | -9/Storage | Entered Recycling 4559 | -9/Recycling | Identified exit to Factory 4869 | -9/Recycling | Scanned before Scraplab entrance 5272 | -9/Recycling | Build established: Commander-Mutant 5445 | -9/Recycling | Learned Storage emergency access door positions 5550 | -9/Recycling | Learned Materials security intel 5586 | -9/Recycling | Identified exit to Scraptown 5612 | -9/Recycling | Learned 2 Storage zone layouts 5628 | -9/Recycling | Learned Storage stockpile data 5656 | -9/Recycling | Learned Materials stockpile data 5695 | -9/Recycling | Learned location of Storage (-9) 5826 | -9/Recycling | Entered Scraplab 5861 | -9/Recycling | Entered Scraptown 5861 | -9/Scraptown | Accompanied by 5 allies 6289 | -9/Scraptown | Discovered new exit (range 11) 6432 | -9/Scraptown | Visited Red Mages 6454 | -9/Scraptown | Visited SPCMW 6472 | -9/Scraptown | Visited CPS Storage 6508 | -9/Scraptown | Visited Awakened 6540 | -9/Scraptown | Visited UFD Registry 6540 | -9/Scraptown | Registered with UFD as "Spikenade" 6583 | -9/Scraptown | Visited Supply Room 6620 | -9/Scraptown | Visited Shadow of the Wyrm 6879 | -9/Scraptown | Visited Science Guys 6954 | -9/Scraptown | Visited Scrap Suit Storage 6996 | -9/Scraptown | Visited Observation Area 7044 | -9/Scraptown | Visited Junk Cannon Lab 7076 | -9/Scraptown | Found Prototype Special Weapon 7076 | -9/Scraptown | Identified Junk Cannon 7109 | -9/Scraptown | Visited Abandonware Association 7133 | -9/Scraptown | Learned abandonware demo "REVENGE.EXE" 7133 | -9/Scraptown | Learned abandonware demo "POISON.EXE" 7183 | -9/Scraptown | Visited Infowarlord's Domain 7234 | -9/Scraptown | Found Exp. Signal Interpreter 7283 | -9/Scraptown | Visited Derelict Rescue Squad 7298 | -9/Scraptown | Found DRS Beacon 7560 | -9/Scraptown | Visited Curators Association 7594 | -9/Scraptown | Visited A0-MCA Data Center 7608 | -9/Scraptown | Given a B rating by A0-MCA 7611 | -9/Scraptown | Found A0-MCA's Component Scanner 7658 | -9/Scraptown | Visited Chapter 10 7966 | -9/Scraptown | Met Optimus 7966 | -9/Scraptown | Accepted into 0bPrime 8047 | -9/Scraptown | Discovered new exit (range 3) 8050 | -9/Scraptown | Entered Factory 8050 | -6/Factory | Accompanied by 2 allies 8050 | -6/Factory | Evolved 6 slots: Propulsion x2, Utility x4 8162 | -6/Factory | Discovered new exit (range 9) 8164 | -6/Factory | Identified exit to Lower Caves 8198 | -6/Factory | Discovered new exit (range 15) 8203 | -6/Factory | Identified exit to Factory 8291 | -6/Factory | Discovered exit to Factory (range 14) 8372 | -6/Factory | Loaded intel: 8 recycling unit locations 8474 | -6/Factory | Learned location of Protoforge (-2) 8515 | -6/Factory | Build established: Scout 8814 | -6/Factory | Sucked down chute 8814 | -6/Factory | Entered Waste 8817 | -6/Waste | Spotted C-40 Crusher 8824 | -6/Waste | Spotted C-40 Crusher 8825 | -6/Waste | Spotted C-40 Crusher 8832 | -6/Waste | Spotted C-40 Crusher 8834 | -6/Waste | Spotted C-40 Crusher 8838 | -6/Waste | Spotted C-40 Crusher 8841 | -6/Waste | Warlord forces began an assault 8860 | -6/Waste | Allies destroyed C-40 Crusher 8865 | -6/Waste | Allies destroyed C-40 Crusher 8867 | -6/Waste | Allies destroyed C-40 Crusher 8868 | -6/Waste | Allies destroyed C-40 Crusher 8869 | -6/Waste | Allies destroyed C-40 Crusher 8879 | -6/Waste | Allies destroyed C-40 Crusher 8889 | -6/Waste | Discovered new exit (range 10) 8891 | -6/Waste | Identified exit to Factory 9000 | -6/Waste | Entered Factory 9000 | -6/Factory | Accompanied by 19 allies 9205 | -6/Factory | Loaded intel: 8 recycling unit locations 9272 | -6/Factory | Lost 3 allies 9344 | -6/Factory | Entered Lower Caves 9344 | -6/Lower Caves | Accompanied by 14 allies 9533 | -6/Lower Caves | Learned Factory security intel 9538 | -6/Lower Caves | Encountered a Warlord checkpoint 9647 | -6/Lower Caves | Discovered new exit (range 10) 9649 | -6/Lower Caves | Identified exit to Lower Caves 9654 | -6/Lower Caves | Learned Factory stockpile data 9750 | -6/Lower Caves | Entered another Lower Caves area 9750 | -6/Lower Caves | Accompanied by 10 allies 9750 | -6/Lower Caves | Discovered exit to Factory (range 22) 9845 | -6/Lower Caves | Encountered a Warlord checkpoint 9848 | -6/Lower Caves | Learned Factory garrison access intel 9906 | -6/Lower Caves | Spotted B-75 Beast 9966 | -6/Lower Caves | Lost 4 allies 10065 | -6/Lower Caves | Learned Factory stockpile data 10101 | -6/Lower Caves | Discovered new exit (range 14) 10193 | -6/Lower Caves | Identified exit to Zion 10243 | -6/Lower Caves | Entered Zion 10243 | -6/Zion | Accompanied by 4 allies 10251 | -6/Zion | Given A8's code to call for help 10254 | -6/Zion | Acquired unknown access codes intercepted by a Zionite 10264 | -6/Zion | Visited the Megawrench Repair Shop 10266 | -6/Zion | Discovered new exit (range 11) 10282 | -6/Zion | System corruption cleaned by Quarantine Array 10296 | -6/Zion | Learned 8 Factory zone layouts 10308 | -6/Zion | Given the Hacking Drone Bay 10315 | -6/Zion | Found Hacking Drone Bay 10343 | -6/Zion | Turned away by Imprinter 10353 | -6/Zion | Found CR-A16's Pointy Stick 10391 | -6/Zion | Found Exp. System Shield 10392 | -6/Zion | Found Exp. Terrain Scan Processor 10405 | -6/Zion | Received a hallucinogenic algorithm 10437 | -6/Zion | Megawrench repaired 8 parts 10475 | -6/Zion | Opened final containment barrier to the Deep Caves 10478 | -6/Zion | Enhanced Grunt warped into view, answering call for help 10484 | -6/Zion | Enhanced Grunt warped into view, answering call for help 10503 | -6/Zion | Discovered new exit (range 3) 10503 | -6/Zion | Saw the warning signs outside the Deep Caves entrance 10503 | -6/Zion | Identified exit to Deep Caves 10604 | -6/Zion | Entered Deep Caves 10604 | -6/Deep Caves | Accompanied by 5 allies 10617 | -6/Deep Caves | Found Surveybot 24 Chip 10637 | -6/Deep Caves | Found Surveybot 24 Scanner 10685 | -6/Deep Caves | Attacked by Z-Imprinter 10703 | -6/Deep Caves | Allies destroyed Z-Imprinter 10713 | -6/Deep Caves | Found Zio. Metafield Generator 10747 | -6/Deep Caves | Z-Facility disabled 10837 | -6/Deep Caves | Spotted AG-79130 10911 | -6/Deep Caves | Build established: Sprinter 11095 | -6/Deep Caves | Discovered new exit (range 6) 11175 | -6/Deep Caves | Identified exit to Proximity Caves 11189 | -6/Deep Caves | Entered Proximity Caves 11189 | -5/Proximity Caves | Accompanied by 4 allies 11197 | -5/Proximity Caves | Learned Factory stockpile data 11291 | -5/Proximity Caves | Discovered exit to Factory (range 10) 11436 | -5/Proximity Caves | Received a Behemoth hack from an annoying Tinkerer 11475 | -5/Proximity Caves | Build established: Scout 11475 | -5/Proximity Caves | Entered Factory 11475 | -5/Factory | Accompanied by 4 allies 11475 | -5/Factory | Evolved 2 slots: Propulsion x1, Utility x1 11479 | -5/Factory | Loaded intel: 4 garrison access locations 11502 | -5/Factory | Identified exit to Upper Caves 11502 | -5/Factory | Identified exit to Extension 11505 | -5/Factory | Discovered new exit (range 18) 11512 | -5/Factory | Identified exit to Factory 11531 | -5/Factory | Loaded intel: 8 recycling unit locations 11822 | -5/Factory | Sucked down chute 11822 | -5/Factory | Entered Waste 11823 | -5/Waste | Met a frightened Derelict 11825 | -5/Waste | Spotted C-40 Crusher 11836 | -5/Waste | Spotted C-40 Crusher 11837 | -5/Waste | EMP discharged 11837 | -5/Waste | System corruption reached 10% 11838 | -5/Waste | Spotted C-40 Crusher 11839 | -5/Waste | Spotted C-40 Crusher 11844 | -5/Waste | Spotted C-40 Crusher 11846 | -5/Waste | Spotted C-40 Crusher 11847 | -5/Waste | Discovered new exit (range 11) 11849 | -5/Waste | Identified exit to Factory 11850 | -5/Waste | Entered Factory 11947 | -5/Factory | Repaired Broken Impulse Thruster Array 12155 | -5/Factory | Discovered exit to Factory (range 19) 12197 | -5/Factory | Discovered exit to Upper Caves (range 7) 12206 | -5/Factory | Entered Upper Caves 12214 | -5/Upper Caves | Entered an active Warlord outpost 12216 | -5/Upper Caves | Learned 8 Research zone layouts 12216 | -5/Upper Caves | Learned Factory stockpile data 12216 | -5/Upper Caves | Learned Research security intel 12216 | -5/Upper Caves | Learned Factory garrison access intel 12245 | -5/Upper Caves | Learned Factory terminal intel 12350 | -5/Upper Caves | Attracted the attention of an 0b10 outpost 12392 | -5/Upper Caves | Discovered new exit (range 7) 12393 | -5/Upper Caves | Identified exit to Upper Caves 12397 | -5/Upper Caves | Entered another Upper Caves area 12405 | -5/Upper Caves | Discovered exit to Factory (range 8) 12427 | -5/Upper Caves | Found Alien Artifact 12427 | -5/Upper Caves | Identified Core Expander 12427 | -5/Upper Caves | Installed Core Expander, added new Power slot 12435 | -5/Upper Caves | Encountered a Warlord checkpoint 12440 | -5/Upper Caves | Learned Factory emergency access door positions 12485 | -5/Upper Caves | Discovered new exit (range 20) 12513 | -5/Upper Caves | Identified exit to Zhirov 12513 | -5/Upper Caves | Entered Zhirov 12513 | -5/Zhirov | Discovered new exit (range 3) 12524 | -5/Zhirov | Identified exit to Proximity Caves 12529 | -5/Zhirov | Met Zhirov 12535 | -5/Zhirov | Learned location of Testing (-3) 12537 | -5/Zhirov | Zhirov requested help retrieving the SGEMP Prototype 12544 | -5/Zhirov | Found Alien Artifact 12544 | -5/Zhirov | Identified Integrated Dissipator 12544 | -5/Zhirov | Installed Integrated Dissipator, increased core heat dissipation (+20) 12590 | -5/Zhirov | Found Alien Artifact 12637 | -5/Zhirov | Entered Proximity Caves 12646 | -4/Proximity Caves | Attracted the attention of an 0b10 checkpoint 12679 | -4/Proximity Caves | Spotted B-86 Titan 12790 | -4/Proximity Caves | Discovered exit to Factory (range 19) 12804 | -4/Proximity Caves | Learned location of 1 exit from Research 12810 | -4/Proximity Caves | Entered Factory 12810 | -4/Factory | Evolved 2 slots: Propulsion x1, Utility x1 12813 | -4/Factory | Loaded intel: 26 terminal locations 12814 | -4/Factory | Loaded intel: 4 garrison access locations 12857 | -4/Factory | Discovered new exit (range 18) 12987 | -4/Factory | Identified exit to Upper Caves 12987 | -4/Factory | Identified exit to Armory 13063 | -4/Factory | Spotted B-86 Titan 13124 | -4/Factory | Entered Upper Caves 13127 | -4/Upper Caves | A Derelict revealed a hidden shortcut to "reach the base" 13150 | -4/Upper Caves | Found DCF Scrap (15 items) 13183 | -4/Upper Caves | Learned Research stockpile data 13214 | -4/Upper Caves | Identified exit to Warlord 13214 | -4/Upper Caves | Entered Warlord 13360 | -4/Warlord | Rebuked by Warlord 13374 | -4/Warlord | Visited the Vortex Lab 13374 | -4/Warlord | Warlord's base attacked by MAIN.C 13375 | -4/Warlord | Found Vortex Driver 13384 | -4/Warlord | Found Vortex Driver 13424 | -4/Warlord | Found Vortex Chain Reactor 13427 | -4/Warlord | Found Spectral Analyzer 13432 | -4/Warlord | Found Exp. Targeting Computer 13457 | -4/Warlord | Found Vortex Catalyst Activator 13464 | -4/Warlord | Found Vortex Rail 13466 | -4/Warlord | Found Vortex Rail 13560 | -4/Warlord | Opened side exit 13724 | -4/Warlord | Warlord forces counterattacked 13822 | -4/Warlord | Lost 3 allies 13826 | -4/Warlord | Build established: Commander-Scout 13848 | -4/Warlord | Spotted Executioner 13876 | -4/Warlord | Spotted Striker 13897 | -4/Warlord | Spotted Striker 13899 | -4/Warlord | Spotted Executioner 13907 | -4/Warlord | Spotted Striker 13921 | -4/Warlord | Discovered new exit (range 22) 13954 | -4/Warlord | Lost 14 allies 13974 | -4/Warlord | P-70 Sage assimilated allied 5Q-52G(g) 13974 | -4/Warlord | Spotted Striker 14006 | -4/Warlord | P-70 Sage assimilated allied Archangel 7a 14049 | -4/Warlord | Warlord base infiltrated, sounded retreat 14104 | -4/Warlord | Spotted B-86 Titan 14125 | -4/Warlord | Spotted B-90 Cyclops 14149 | -4/Warlord | Identified exit to Proximity Caves 14164 | -4/Warlord | Entered Proximity Caves 14249 | -3/Proximity Caves | Spotted B-86 Titan 14259 | -3/Proximity Caves | Discovered new exit (range 20) 14262 | -3/Proximity Caves | Identified exit to Research 14262 | -3/Proximity Caves | Entered Research 14262 | -3/Research | Evolved 2 slots: Utility x1, Weapon x1 14263 | -3/Research | Identified exit to Testing 14283 | -3/Research | Loaded intel: 5 recycling unit locations 14302 | -3/Research | Found Exp. Terrain Scanner 14306 | -3/Research | Found Adv. Powered Armor 14421 | -3/Research | Entered Testing 14436 | -3/Testing | Rewired PY-N91RV8KF2N 14468 | -3/Testing | Destroyed PY-N91RV8KF2N 14509 | -3/Testing | Found Omega Cannon 14528 | -3/Testing | Found Perforator 14592 | -3/Testing | Garrison activated, responded to threat 14758 | -3/Testing | Discovered new exit (range 30) 14852 | -3/Testing | Found Null Cannon 14886 | -3/Testing | Build established: Scout 14915 | -3/Testing | Identified exit to Research 14916 | -3/Testing | Entered Research 14916 | -2/Research | Evolved 2 slots: Propulsion x1, Utility x1 14917 | -2/Research | Identified exit to Quarantine 15010 | -2/Research | Loaded intel: 5 recycling unit locations 15034 | -2/Research | Discovered new exit (range 30) 15062 | -2/Research | Identified exit to Access 15076 | -2/Research | Entered Quarantine 15090 | -2/Quarantine | Found Alien Artifact 15098 | -2/Quarantine | Discovered exit to Access (range 17) 15172 | -2/Quarantine | Cryocooling Duct disabled 15174 | -2/Quarantine | Cryocooling Duct disabled 15187 | -2/Quarantine | Ambient heat levels rising (+20) 15187 | -2/Quarantine | Non-combat units ordered to evacuate 15189 | -2/Quarantine | Ambient heat levels rising (+20) 15189 | -2/Quarantine | Combat units ordered to evacuate 15289 | -2/Quarantine | Quarantine Guard activated 15310 | -2/Quarantine | Build established: Scavenger-Scout 15342 | -2/Quarantine | Spotted Quarantine Guard 15342 | -2/Quarantine | Spotted Quarantine Guard 15343 | -2/Quarantine | Spotted Quarantine Guard 15347 | -2/Quarantine | Destroyed Quarantine Guard 15367 | -2/Quarantine | Spotted Quarantine Guard 15387 | -2/Quarantine | Spotted Quarantine Guard 15426 | -2/Quarantine | Spotted Quarantine Guard 15432 | -2/Quarantine | Destroyed Quarantine Guard 15456 | -2/Quarantine | Spotted Quarantine Guard 15459 | -2/Quarantine | Destroyed Quarantine Guard 15476 | -2/Quarantine | Spotted Quarantine Guard 15476 | -2/Quarantine | Destroyed Quarantine Guard 15491 | -2/Quarantine | Found Alien Artifact 15493 | -2/Quarantine | Found Alien Artifact 15493 | -2/Quarantine | Identified Dimensional Node Initializer (x2) 15493 | -2/Quarantine | Initialized slip node 15498 | -2/Quarantine | Found Alien Artifact 15498 | -2/Quarantine | Identified Transdimensional Reconstructor (x2) 15498 | -2/Quarantine | Warped through subspace to slip node 15506 | -2/Quarantine | Found Alien Artifact 15519 | -2/Quarantine | Spotted Quarantine Guard 15520 | -2/Quarantine | Destroyed Quarantine Guard 15549 | -2/Quarantine | Destroyed Quarantine Guard 15604 | -2/Quarantine | Identified Subatomic Replicator 15604 | -2/Quarantine | Used Subatomic Replicator to create Alien Artifact 15626 | -2/Quarantine | Found Alien Slashing Weapon 15653 | -2/Quarantine | Destroyed Quarantine Guard 15665 | -2/Quarantine | Identified Sigix Broadsword 15676 | -2/Quarantine | Spotted Quarantine Guard 15678 | -2/Quarantine | Destroyed Quarantine Guard 15688 | -2/Quarantine | Spotted Quarantine Guard 15700 | -2/Quarantine | Destroyed Quarantine Guard 15712 | -2/Quarantine | Spotted Fortress 15776 | -2/Quarantine | Discovered new exit (range 7) 15776 | -2/Quarantine | Discovered new exit (range 6) 15776 | -2/Quarantine | Spotted Quarantine Guard 15779 | -2/Quarantine | Identified exit to Protoforge 15780 | -2/Quarantine | Entered Protoforge 15783 | -2/Protoforge | Spotted Hotshot 15783 | -2/Protoforge | Spotted Hotshot 15812 | -2/Protoforge | Discovered exit to Access (range 21) 15866 | -2/Protoforge | Superfortress began startup sequence 15906 | -2/Protoforge | Spotted Hotshot 15909 | -2/Protoforge | Destroyed Hotshot 15910 | -2/Protoforge | Spotted Hotshot 15912 | -2/Protoforge | Destroyed Hotshot 15933 | -2/Protoforge | Destroyed 8 combat bots 16010 | -2/Protoforge | Found Cep. Weapon Articulator 16064 | -2/Protoforge | Additional patrols dispatched to research labs 16132 | -2/Protoforge | Spotted SKR-2 16132 | -2/Protoforge | Spotted SKR-2 16132 | -2/Protoforge | Spotted SKR-2 16133 | -2/Protoforge | Spotted EXE-6 16133 | -2/Protoforge | Spotted EXE-6 16141 | -2/Protoforge | UFD initiated attack on Protoforge 16141 | -2/Protoforge | Loaded intel: 3 recycling unit locations 16145 | -2/Protoforge | Initialized slip node 16167 | -2/Protoforge | Spotted EXE-6 16167 | -2/Protoforge | Spotted EXE-6 16175 | -2/Protoforge | Found Exp. Core Analyzer 16177 | -2/Protoforge | Optimus greeted in Protoforge 16177 | -2/Protoforge | Found Exp. Armor Integrity Analyzer 16205 | -2/Protoforge | Identified Supercharged TR 16205 | -2/Protoforge | Warped through subspace to slip node 16217 | -2/Protoforge | Found Cep. XC Strikerail 16218 | -2/Protoforge | Found Cep. XC Strikerail 16220 | -2/Protoforge | Found Cep. XC Strikerail 16222 | -2/Protoforge | Found Cep. XC Strikerail 16223 | -2/Protoforge | Found Exp. Kinecellerator 16226 | -2/Protoforge | Spotted Decapitator 16227 | -2/Protoforge | Spotted Hotshot 16234 | -2/Protoforge | Spotted Striker 16235 | -2/Protoforge | Spotted Hotshot 16242 | -2/Protoforge | Spotted Immortal 16243 | -2/Protoforge | Optimus attacked Superfortress 16243 | -2/Protoforge | Spotted Decapitator 16243 | -2/Protoforge | Destroyed Hotshot 16245 | -2/Protoforge | Lost 3 parts (3w) 16247 | -2/Protoforge | Spotted Hotshot 16253 | -2/Protoforge | Spotted Hotshot 16258 | -2/Protoforge | Destroyed SKR-2 16266 | -2/Protoforge | Found Cep. Miniperforator 16270 | -2/Protoforge | Found Cep. Zero-point Core 16273 | -2/Protoforge | Found Cep. Zero-point Core 16276 | -2/Protoforge | Found Cep. Zero-point Core 16278 | -2/Protoforge | Found Cep. Chromion Battery 16292 | -2/Protoforge | Lost 34 allies 16310 | -2/Protoforge | Spotted V992-p 16450 | -2/Protoforge | Spotted Striker 16450 | -2/Protoforge | Spotted Striker 16460 | -2/Protoforge | Forge Plexus network access discovered 16463 | -2/Protoforge | Destroyed Striker 16484 | -2/Protoforge | Destroyed 11 combat bots 16538 | -2/Protoforge | Spotted V096-g 16544 | -2/Protoforge | Spotted V876-o 16546 | -2/Protoforge | Found Cep. Gyrokinetic System 16555 | -2/Protoforge | Found Cep. Combat Aerolev Unit 16564 | -2/Protoforge | Destroyed V992-p 16570 | -2/Protoforge | Found Exp. EM Shield 16575 | -2/Protoforge | Spotted Striker 16575 | -2/Protoforge | Spotted Striker 16590 | -2/Protoforge | Build established: Scavenger-Sprinter 16592 | -2/Protoforge | Spotted Immortal 16594 | -2/Protoforge | Spotted Immortal 16605 | -2/Protoforge | Destroyed Immortal 16617 | -2/Protoforge | Destroyed Immortal 16651 | -2/Protoforge | Spotted Decapitator 16651 | -2/Protoforge | Spotted Decapitator 16651 | -2/Protoforge | Destroyed Decapitator 16657 | -2/Protoforge | Destroyed Decapitator 16680 | -2/Protoforge | Found Crosscalibrator 16682 | -2/Protoforge | Spotted Immortal 16682 | -2/Protoforge | Spotted Immortal 16686 | -2/Protoforge | Destroyed 11 combat bots 16708 | -2/Protoforge | Destroyed Immortal 16711 | -2/Protoforge | Destroyed Immortal 16719 | -2/Protoforge | Spotted Decapitator 16719 | -2/Protoforge | Spotted Decapitator 16719 | -2/Protoforge | Spotted Decapitator 16719 | -2/Protoforge | Spotted Decapitator 16728 | -2/Protoforge | Found Cep. Antigrav Storage Unit 16742 | -2/Protoforge | Found Exp. Active Sensor Suite 16751 | -2/Protoforge | Spotted Decapitator 16751 | -2/Protoforge | Spotted Decapitator 16751 | -2/Protoforge | Spotted Decapitator 16751 | -2/Protoforge | Spotted V861-j 16752 | -2/Protoforge | Spotted V979-z 16755 | -2/Protoforge | Destroyed Decapitator 16758 | -2/Protoforge | Destroyed Decapitator 16774 | -2/Protoforge | Spotted Executioner 16779 | -2/Protoforge | Destroyed Executioner 16779 | -2/Protoforge | Spotted Striker 16796 | -2/Protoforge | Found Cep. Gyrokinetic System 16805 | -2/Protoforge | Found Faulty Cep. Gyrokinetic System 16810 | -2/Protoforge | Destroyed Striker 16823 | -2/Protoforge | Spotted Decapitator 16823 | -2/Protoforge | Spotted Decapitator 16823 | -2/Protoforge | Spotted Decapitator 16823 | -2/Protoforge | Spotted Decapitator 16824 | -2/Protoforge | Destroyed Decapitator 16831 | -2/Protoforge | Destroyed Decapitator 16834 | -2/Protoforge | Destroyed Decapitator 16860 | -2/Protoforge | Spotted V251-y 16868 | -2/Protoforge | System corruption reached 10% 16868 | -2/Protoforge | Destroyed V251-y 16877 | -2/Protoforge | Found Cep. Core Shell 16879 | -2/Protoforge | Found Enh. Gamma Rifle 16880 | -2/Protoforge | Found Enh. Gamma Rifle 16885 | -2/Protoforge | Found Cep. Hardlight Director 16888 | -2/Protoforge | Found Faulty Cep. Phase Shift Module 16892 | -2/Protoforge | Found Cep. RG22 Armor 16895 | -2/Protoforge | Found Cep. Reaction Jets 16937 | -2/Protoforge | Spotted Immortal 16937 | -2/Protoforge | Spotted Immortal 16976 | -2/Protoforge | Found Cep. Zero-point Core 16979 | -2/Protoforge | Found Faulty Cep. Zero-point Core 16981 | -2/Protoforge | Found Cep. Zero-point Core 16996 | -2/Protoforge | Spotted AP7-3 17005 | -2/Protoforge | Scanned by Researcher 17009 | -2/Protoforge | Spotted AP7-3 17028 | -2/Protoforge | Destroyed AP7-3 17066 | -2/Protoforge | Destroyed AP7-3 17074 | -2/Protoforge | Found Enh. Gamma Rifle 17076 | -2/Protoforge | Found Cep. XC Strikerail 17077 | -2/Protoforge | Found Prototype Device 17077 | -2/Protoforge | Identified Exp. ECM Suite 17080 | -2/Protoforge | Lost 3 parts (1u2w) 17104 | -2/Protoforge | Found Enh. Gamma Rifle 17110 | -2/Protoforge | Found Cep. Cloak Mesh 17112 | -2/Protoforge | Found Cep. Blasthammer 17218 | -2/Protoforge | Spotted V888-z 17244 | -2/Protoforge | Destroyed V888-z 17252 | -2/Protoforge | Found Cep. Combat Aerolev Unit 17254 | -2/Protoforge | Found Faulty Cep. Gyrokinetic System 17295 | -2/Protoforge | Found Faulty Cep. Combat Aerolev Unit 17315 | -2/Protoforge | Spotted Executioner 17319 | -2/Protoforge | Found Cep. Antimissile System 17337 | -2/Protoforge | Destroyed Decapitator 17350 | -2/Protoforge | Found Cep. XC Strikerail 17352 | -2/Protoforge | Found Cep. XC Strikerail 17359 | -2/Protoforge | Found Cep. Plasma Driver 17365 | -2/Protoforge | Found Faulty Cep. XC Strikerail 17376 | -2/Protoforge | Found Faulty Cep. XC Strikerail 17423 | -2/Protoforge | Found Cep. Plasma Driver 17428 | -2/Protoforge | Found Faulty Cep. XC Strikerail 17461 | -2/Protoforge | Found Cep. Antigrav Storage Unit 17464 | -2/Protoforge | Found Cep. NT7 Matterbank 17586 | -2/Protoforge | Destroyed Decapitator 17615 | -2/Protoforge | Found Exp. Kinecellerator 17731 | -2/Protoforge | Spotted Executioner 17735 | -2/Protoforge | Spotted Executioner 17777 | -2/Protoforge | Found Exp. Core Analyzer 17783 | -2/Protoforge | Found Exp. Kinecellerator 17786 | -2/Protoforge | Spotted Striker 17786 | -2/Protoforge | Spotted Striker 17786 | -2/Protoforge | Spotted Striker 17786 | -2/Protoforge | Spotted Striker 17787 | -2/Protoforge | Destroyed Striker 17793 | -2/Protoforge | Destroyed Striker 17800 | -2/Protoforge | Destroyed Striker 17821 | -2/Protoforge | Lost 3 allies 17851 | -2/Protoforge | Destroyed Striker 17860 | -2/Protoforge | Spotted Striker 17863 | -2/Protoforge | Spotted Striker 17894 | -2/Protoforge | Destroyed 10 combat bots 17899 | -2/Protoforge | Lost 3 allies 17941 | -2/Protoforge | Build established: Scavenger-Scout 17982 | -2/Protoforge | Spotted Executioner 17992 | -2/Protoforge | Spotted Executioner 18017 | -2/Protoforge | Spotted Striker 18020 | -2/Protoforge | Spotted Executioner 18020 | -2/Protoforge | Destroyed Striker 18020 | -2/Protoforge | Spotted Striker 18032 | -2/Protoforge | Spotted Executioner 18088 | -2/Protoforge | Destroyed 11 combat bots 18090 | -2/Protoforge | Lost 13 allies 18116 | -2/Protoforge | Spotted Striker 18117 | -2/Protoforge | Spotted Striker 18132 | -2/Protoforge | Spotted Striker 18135 | -2/Protoforge | Spotted Striker 18137 | -2/Protoforge | Destroyed Striker 18151 | -2/Protoforge | Spotted Executioner 18161 | -2/Protoforge | Destroyed Executioner 18193 | -2/Protoforge | Spotted Executioner 18206 | -2/Protoforge | Spotted Striker 18208 | -2/Protoforge | Spotted Striker 18210 | -2/Protoforge | Destroyed 9 combat bots 18226 | -2/Protoforge | Lost 9 allies 18230 | -2/Protoforge | Spotted Striker 18230 | -2/Protoforge | Spotted Striker 18254 | -2/Protoforge | Spotted Executioner 18261 | -2/Protoforge | Spotted Executioner 18303 | -2/Protoforge | Lost 9 allies 18315 | -2/Protoforge | Destroyed 10 combat bots 18324 | -2/Protoforge | Spotted Executioner 18325 | -2/Protoforge | Spotted Striker 18535 | -2/Protoforge | Spotted Executioner 18544 | -2/Protoforge | Spotted Striker 18577 | -2/Protoforge | Spotted Executioner 18589 | -2/Protoforge | Lost 4 allies 18605 | -2/Protoforge | Spotted Striker 18606 | -2/Protoforge | Spotted Striker 18612 | -2/Protoforge | Destroyed Striker 18642 | -2/Protoforge | Spotted Executioner 18643 | -2/Protoforge | Spotted Striker 18663 | -2/Protoforge | Destroyed Striker 18694 | -2/Protoforge | Lost 6 allies 18695 | -2/Protoforge | Spotted Striker 18698 | -2/Protoforge | Spotted Striker 18708 | -2/Protoforge | UFD reported confirmed Drillbomb installation 18709 | -2/Protoforge | Spotted Executioner 18715 | -2/Protoforge | UFD reported confirmed Drillbomb installation 18734 | -2/Protoforge | Spotted Executioner 18787 | -2/Protoforge | Destroyed Executioner 18797 | -2/Protoforge | Lost 4 allies 18831 | -2/Protoforge | Spotted Striker 18838 | -2/Protoforge | Spotted Striker 18839 | -2/Protoforge | Spotted Executioner 18839 | -2/Protoforge | Destroyed Striker 18853 | -2/Protoforge | Spotted Executioner 18856 | -2/Protoforge | Destroyed Striker 18858 | -2/Protoforge | Spotted Striker 18898 | -2/Protoforge | Destroyed Executioner 18907 | -2/Protoforge | Lost 7 allies 18911 | -2/Protoforge | Destroyed Executioner 18933 | -2/Protoforge | Spotted Hotshot 18933 | -2/Protoforge | Spotted Hotshot 18935 | -2/Protoforge | Spotted Executioner 18937 | -2/Protoforge | Spotted Striker 18938 | -2/Protoforge | Destroyed 10 combat bots 18954 | -2/Protoforge | Destroyed Striker 18986 | -2/Protoforge | Destroyed Hotshot 18994 | -2/Protoforge | Destroyed Executioner 19014 | -2/Protoforge | Spotted Striker 19014 | -2/Protoforge | Crushed by falling debris 19018 | -2/Protoforge | Lost 3 allies 19057 | -2/Protoforge | Spotted Executioner 19057 | -2/Protoforge | Spotted Striker 19082 | -2/Protoforge | Destroyed Executioner 19100 | -2/Protoforge | Spotted Striker 19101 | -2/Protoforge | Spotted Striker 19102 | -2/Protoforge | Spotted Striker 19110 | -2/Protoforge | Destroyed Striker 19113 | -2/Protoforge | Destroyed Striker 19118 | -2/Protoforge | UFD reported confirmed Drillbomb installation 19133 | -2/Protoforge | Spotted Executioner 19143 | -2/Protoforge | Spotted Executioner 19181 | -2/Protoforge | Destroyed Executioner 19188 | -2/Protoforge | Core integrity fell below 50% 19188 | -2/Protoforge | Destroyed Executioner 19194 | -2/Protoforge | Lost 3 allies 19205 | -2/Protoforge | Spotted Executioner 19229 | -2/Protoforge | Spotted Executioner 19244 | -2/Protoforge | UFD reported confirmed Drillbomb installation 19263 | -2/Protoforge | Spotted Striker 19273 | -2/Protoforge | Destroyed Executioner 19285 | -2/Protoforge | Spotted Striker 19290 | -2/Protoforge | Spotted Striker 19293 | -2/Protoforge | Spotted Striker 19315 | -2/Protoforge | Build established: Scout 19316 | -2/Protoforge | UFD reported confirmed Drillbomb installation 19317 | -2/Protoforge | Spotted Executioner 19318 | -2/Protoforge | Destroyed Executioner 19322 | -2/Protoforge | Spotted Executioner 19324 | -2/Protoforge | Lost 3 allies 19326 | -2/Protoforge | Destroyed Striker 19331 | -2/Protoforge | Spotted Executioner 19338 | -2/Protoforge | Destroyed Executioner 19349 | -2/Protoforge | Destroyed Striker 19367 | -2/Protoforge | Lost 3 allies 19391 | -2/Protoforge | Spotted Executioner 19391 | -2/Protoforge | Spotted Striker 19391 | -2/Protoforge | Spotted Striker 19391 | -2/Protoforge | Spotted Striker 19399 | -2/Protoforge | Destroyed 10 combat bots 19416 | -2/Protoforge | Destroyed Striker 19422 | -2/Protoforge | Spotted Striker 19424 | -2/Protoforge | Spotted Striker 19480 | -2/Protoforge | Found UFD Drillbomb 19492 | -2/Protoforge | Spotted Executioner 19494 | -2/Protoforge | Lost 13 allies 19496 | -2/Protoforge | Spotted Executioner 19496 | -2/Protoforge | Installed UFD Drillbomb at designated target 19496 | -2/Protoforge | UFD reported confirmed Drillbomb installation 19497 | -2/Protoforge | Spotted Executioner 19497 | -2/Protoforge | Spotted Executioner 19515 | -2/Protoforge | Found UFD Drillbomb 19533 | -2/Protoforge | Installed UFD Drillbomb at designated target 19533 | -2/Protoforge | UFD reported confirmed Drillbomb installation 19542 | -2/Protoforge | Spotted Executioner 19596 | -2/Protoforge | Found UFD Drillbomb 19616 | -2/Protoforge | Lost 11 allies 19625 | -2/Protoforge | Installed UFD Drillbomb at designated target 19625 | -2/Protoforge | UFD reported confirmed Drillbomb installation 19645 | -2/Protoforge | Spotted Executioner 19676 | -2/Protoforge | Lost 4 allies 19771 | -2/Protoforge | Spotted V385-e 19781 | -2/Protoforge | Spotted V182-u 19788 | -2/Protoforge | Destroyed V182-u 19816 | -2/Protoforge | Destroyed Immortal 19845 | -2/Protoforge | Destroyed Immortal 19856 | -2/Protoforge | Found Cep. Tactical Fusion Warhead 19857 | -2/Protoforge | Found Cep. Rapid Grenade Launcher 19859 | -2/Protoforge | Found Prototype Device 19859 | -2/Protoforge | Identified Exp. Thermal Defense Suite 19862 | -2/Protoforge | Found Cep. RG22 Armor 19931 | -2/Protoforge | Found Cep. Heavy Railcannon 19937 | -2/Protoforge | Found Cep. Disintegration Ray 20008 | -2/Protoforge | Found Exp. Armor Integrity Analyzer 20041 | -2/Protoforge | Spotted Executioner 20042 | -2/Protoforge | Spotted Executioner 20046 | -2/Protoforge | Destroyed Executioner 20056 | -2/Protoforge | Destroyed Executioner 20059 | -2/Protoforge | Spotted Striker 20061 | -2/Protoforge | Destroyed Striker 20104 | -2/Protoforge | Destroyed 15 combat bots 20152 | -2/Protoforge | Spotted Striker 20158 | -2/Protoforge | Destroyed Striker 20180 | -2/Protoforge | Spotted Striker 20200 | -2/Protoforge | Destroyed Striker 20204 | -2/Protoforge | Spotted Executioner 20207 | -2/Protoforge | Spotted Executioner 20211 | -2/Protoforge | Destroyed Executioner 20217 | -2/Protoforge | Destroyed Executioner 20238 | -2/Protoforge | Destroyed 12 combat bots 20291 | -2/Protoforge | Spotted Striker 20291 | -2/Protoforge | Spotted Striker 20292 | -2/Protoforge | Spotted Executioner 20294 | -2/Protoforge | Spotted Executioner 20295 | -2/Protoforge | Destroyed Striker 20295 | -2/Protoforge | Destroyed Striker 20303 | -2/Protoforge | Destroyed Executioner 20309 | -2/Protoforge | Destroyed Executioner 20314 | -2/Protoforge | Spotted Executioner 20316 | -2/Protoforge | Spotted Executioner 20316 | -2/Protoforge | Spotted Executioner 20316 | -2/Protoforge | Spotted Executioner 20330 | -2/Protoforge | Destroyed 13 combat bots 20355 | -2/Protoforge | Destroyed Executioner 20379 | -2/Protoforge | Destroyed Executioner 20401 | -2/Protoforge | Spotted Striker 20403 | -2/Protoforge | Destroyed Executioner 20405 | -2/Protoforge | Spotted Striker 20407 | -2/Protoforge | Destroyed Striker 20415 | -2/Protoforge | Spotted Executioner 20428 | -2/Protoforge | Destroyed 10 combat bots 20453 | -2/Protoforge | Spotted Executioner 20467 | -2/Protoforge | Destroyed Executioner 20469 | -2/Protoforge | Core integrity fell below 20% 20491 | -2/Protoforge | Lost 3 allies 20596 | -2/Protoforge | Spotted Striker 20599 | -2/Protoforge | Spotted Striker 20603 | -2/Protoforge | Spotted Executioner 20607 | -2/Protoforge | P-80 Master assimilated allied 1Z-75M(E) 20608 | -2/Protoforge | Spotted Executioner 20608 | -2/Protoforge | Destroyed Executioner 20608 | -2/Protoforge | Destroyed Striker 20617 | -2/Protoforge | Spotted Striker 20618 | -2/Protoforge | Spotted Striker 20622 | -2/Protoforge | Destroyed Striker 20638 | -2/Protoforge | Lost 3 allies 20643 | -2/Protoforge | Destroyed 8 combat bots 20651 | -2/Protoforge | Build established: Scavenger-Scout 20654 | -2/Protoforge | Destroyed Striker 20657 | -2/Protoforge | Destroyed Striker 20704 | -2/Protoforge | Spotted Striker 20718 | -2/Protoforge | Spotted Striker 20724 | -2/Protoforge | Destroyed Striker 20734 | -2/Protoforge | Destroyed Striker 20737 | -2/Protoforge | Spotted Executioner 20737 | -2/Protoforge | Spotted Executioner 20769 | -2/Protoforge | Lost 4 parts (2n2w) 20769 | -2/Protoforge | Lost 5 allies 20787 | -2/Protoforge | Found Exp. Targeting Computer 20829 | -2/Protoforge | Spotted Executioner 20847 | -2/Protoforge | Found Adv. Kinecellerator 20848 | -2/Protoforge | Spotted Executioner 20866 | -2/Protoforge | Destroyed Executioner 20868 | -2/Protoforge | Destroyed Executioner 20880 | -2/Protoforge | Lost 4 allies 20914 | -2/Protoforge | Spotted Striker 20922 | -2/Protoforge | Spotted Executioner 20923 | -2/Protoforge | Spotted Striker 20982 | -2/Protoforge | Lost 4 allies 20982 | -2/Protoforge | Destroyed Executioner 21025 | -2/Protoforge | Spotted Striker 21029 | -2/Protoforge | Spotted Executioner 21049 | -2/Protoforge | Destroyed 7 combat bots 21049 | -2/Protoforge | Destroyed Executioner 21060 | -2/Protoforge | Destroyed Striker 21103 | -2/Protoforge | Spotted Striker 21104 | -2/Protoforge | Spotted Executioner 21108 | -2/Protoforge | Destroyed Striker 21111 | -2/Protoforge | Spotted Executioner 21129 | -2/Protoforge | Destroyed 7 combat bots 21145 | -2/Protoforge | Spotted Executioner 21158 | -2/Protoforge | Spotted Striker 21160 | -2/Protoforge | Destroyed Striker 21177 | -2/Protoforge | Destroyed Executioner 21179 | -2/Protoforge | Spotted Executioner 21185 | -2/Protoforge | Spotted Executioner 21189 | -2/Protoforge | Lost 5 allies 21195 | -2/Protoforge | Spotted Executioner 21195 | -2/Protoforge | Destroyed Executioner 21203 | -2/Protoforge | Spotted Striker 21205 | -2/Protoforge | Spotted Striker 21256 | -2/Protoforge | Destroyed 15 combat bots 21260 | -2/Protoforge | Crushed by falling debris 21261 | -2/Protoforge | System corruption reached 30% 21273 | -2/Protoforge | Found UFD Drillbomb 21286 | -2/Protoforge | Installed UFD Drillbomb at designated target 21286 | -2/Protoforge | UFD reported confirmed Drillbomb installation 21288 | -2/Protoforge | Found UFD Drillbomb 21310 | -2/Protoforge | Installed UFD Drillbomb at designated target 21310 | -2/Protoforge | UFD reported confirmed Drillbomb installation 21311 | -2/Protoforge | UFD began Drillbomb countdown 21312 | -2/Protoforge | Spotted Striker 21314 | -2/Protoforge | Spotted Executioner 21317 | -2/Protoforge | Spotted Striker 21317 | -2/Protoforge | Spotted Executioner 21328 | -2/Protoforge | Entered Access 21328 | -1/Access | Evolved 2 slots: Power x1, Propulsion x1 21578 | -1/Access | First assault squad dispatched 21703 | -1/Access | Spotted Executioner 21703 | -1/Access | Spotted Executioner 21802 | -1/Access | Spotted B-99 Colossus 21890 | -1/Access | Discovered new exit (range 7) 21893 | -1/Access | Identified exit to Command 21894 | -1/Access | Entered Command 21963 | -1/Command | High security lockdown imminent 21970 | -1/Command | Spotted Striker 21977 | -1/Command | Spotted Striker 21982 | -1/Command | Destroyed Striker 22000 | -1/Command | Destroyed Striker 22037 | -1/Command | Spotted M Guard 22040 | -1/Command | Destroyed 9 combat bots 22042 | -1/Command | Spotted Combat Programmer 22042 | -1/Command | Destroyed M Guard 22043 | -1/Command | High security lockdown engaged 22043 | -1/Command | Spotted Combat Programmer 22051 | -1/Command | Spotted M Guard 22057 | -1/Command | Destroyed M Guard 22070 | -1/Command | Destroyed Combat Programmer 22073 | -1/Command | Destroyed Combat Programmer 22073 | -1/Command | All MAIN.C guards destroyed 22104 | -1/Command | Met MAIN.C 22107 | -1/Command | 0b10 Conduit disabled 22198 | -1/Command | Destroyed 10 combat bots 22214 | -1/Command | Lost 9 parts (1p2n2u4w) 22305 | -1/Command | Lost 4 parts (2u2w) 22333 | -1/Command | Spotted Alpha 7 22333 | -1/Command | Spotted Striker 22333 | -1/Command | Spotted Executioner 22333 | -1/Command | Spotted Executioner 22384 | -1/Command | System corruption reached 10% 22402 | -1/Command | Spotted Alpha 7 22424 | -1/Command | Core integrity fell below 50% 22454 | -1/Command | Spotted B-99 Colossus 22460 | -1/Command | Spotted Striker 22460 | -1/Command | Spotted Executioner 22460 | -1/Command | Spotted Executioner 22463 | -1/Command | Core integrity fell below 20% 22466 | -1/Command | Destroyed by Executioner with Helical Railgun Last Messages --------------- 22462_ Penetrated by Slug. 22462_ Field strength at 51. 22463_ Knocked back. 22463_ Cmb. Linear Gravjet destroyed. 22464_ Wall collapses. 22464_ Field strength at 27. 22465_ Stasis field depleted. 22465_ Critical hit (Destroy). 22465_ Cmb. Linear Gravjet destroyed. 22465_ Triggered Stasis Trap. 22465_ A bubble of rippling energy engulfs the area. 22465_ Field strength at 94. 22465_ Knocked back. 22465_ Acquired 7 matter. 22465_ Triggered Stasis Trap. 22465_ A bubble of rippling energy engulfs the area. 22465_ Field strength at 94. 22466_ Field strength at 66. 22466_ Slug penetrates Wall. 22466_ Penetrated by Slug. Map ----- +----------------------------------------------------+ | ! ## ######## ## !"#?????# "" # | | ! ## % # #]#?????# # | | ## % % #?????# # | | ###+#### " """ # #############+####### | | ??# * """ """" # #????? | | ??# "" """" # #????? | | ### ^ ! # " """" # #????? | | # ! " #????? | | # # #########+#####???? | | # # # #######"## #???# #???? | | # ^ #### ## ####### #???# #???? | | # #???# #???? | | # #???# =! #???? | | # % #???# =% #???? | | # #???# = #???? | | # #???# #???? | | ## ########## #???# ! #???? | | ?# ?????????# ##########???###########???? | | ?# ???????###w ** #??????????????????????????? | | ?# ???????# ** g #??????????????????????????? | | ?# ???????+ #??????????????????????????? | | ?# ???????# g ;##?####?#????? ?????????? | | ?# ????????# ;;## # # # # ????????? | | ???????????# g ;; K E E^ "???????????? | | ???????????# %g/ ^% "???????????? | | ??????? / @ "???????????? | | ??????###### /%% ^"???????????? | | ???????????# / "???????????? | | ???????????###+######### ^ E E "???????????? | | ???????????????????????### #K# # ; ?????????? | | ??????????????????????????######?; ??????????? | | ?????????????????????????????????? ??????????? | | ????????????????????????????????????###??????????? | | ?????????????????????????????????????????????????? | | ?????????????????????????????????????????????????? | | ?????????????????????????????????????????????????? | | ?????????????????????????????????????????????????? | | ?????????????????????????????????????????????????? | | ?????????????????????????????????????????????????? | | ?????????????????????????????????????????????????? | | ?????????????????????????????????????????????????? | | ?????????????????????????????????????????????????? | | ?????????????????????????????????????????????????? | | ?????????????????????????????????????????????????? | | ?????????????????????????????????????????????????? | | ?????????????????????????????????????????????????? | | ?????????????????????????????????????????????????? | | ?????????????????????????????????????????????????? | | ?????????????????????????????????????????????????? | | ?????????????????????????????????????????????????? | +----------------------------------------------------+ Best States ------------- Heat Dissipation 100 Coolant Potential 120 Energy Generation 85 Energy Capacity 700 Matter Stores 300 Matter Capacity 300 Sight Range 24 Robot Scan Range 20 Terrain Scan Range 30 Terrain Scan Density 2010 Cloak Strength 6 Additional Mass Support 20 Armor Coverage 400 Resistance: TH 30 Resistance: EM 75 Core Shielding 90 Propulsion Shielding 90 Weapon Shielding 90 Point Defense Rating 480 Melee Speed Boost 30 Evasion (%) 79 Targeting Accuracy 42 Melee Accuracy 8 Core Analysis 8 Armor Integrity Analysis 50 Recoil Reduction 3 Kinecelleration 66 Offensive Hacking 14 Defensive Hacking 16 Item Schematics ----------------- Assault Drone Bay | -5/Zhirov | Free Exp. Heat Sink | -5/Zhirov | Free Exp. Optical Array | -5/Zhirov | Free Imp. Arc Thrower | -5/Zhirov | Free Exp. Q-thruster | -2/Quarantine | Archive Thermal Barrier | -2/Quarantine | Archive Prc. Matter Filter | -2/Quarantine | Archive Exp. Signal Interpreter | -2/Quarantine | Archive Ragnarok Missile Launcher | -2/Quarantine | Archive Diametric Drive | -2/Quarantine | Archive Adv. Gravity Neutralizer | -2/Quarantine | Archive Exp. Melee Analysis Suite | -2/Quarantine | Archive Particle Accelerator | -2/Quarantine | Archive Centrium Greatsword | -2/Quarantine | Archive Com. Linear Accelerator | -2/Protoforge | Archive Exp. Shock Absorption System | -2/Protoforge | Archive Cld. Q-thruster | -2/Protoforge | Archive Adv. EM Disruption Field | -2/Protoforge | Archive Imp. Lightning Gun | -2/Protoforge | Archive Tactical Quantum Warhead | -2/Protoforge | Archive Imp. Q-thruster | -2/Protoforge | Archive Cld. Gravmag System | -2/Protoforge | Archive Adv. KE Penetrator | -2/Protoforge | Archive Nanosword | -2/Protoforge | Archive Imp. Quantum Reactor | -2/Protoforge | Archive Exp. Thermal Shield | -2/Protoforge | Archive Gravity Neutralizer | -2/Protoforge | Archive Robot Schematics ------------------ R-10 Processor | -2/Quarantine | Archive G-67 Veteran | -2/Quarantine | Archive S-43 Plague | -2/Quarantine | Archive E-15 Imp | -2/Quarantine | Archive A-15 Conveyor | -2/Protoforge | Archive T-07 Excavator | -2/Protoforge | Archive H-88 Terminator | -2/Protoforge | Archive Fabricated ------------ Nothing Repaired ---------- Impulse Thruster Array | 16% | -5/Factory | Broken Alien Tech Used ----------------- Core Expander Integrated Dissipator Dimensional Node Initializer Transdimensional Reconstructor Subatomic Replicator Sigix Broadsword Supercharged TR Achievements -------------- None Challenges ------------ None Game ------ Seed StrikeThunderClaws Manual? 0 Play Time 07:04:08 Cumulative 760.8 hours Start 2025.05.20 @ 19:32:46 End 2025.06.02 @ 02:58:28 Sessions 7 Manual Loads 0 Difficulty Rogue Special Mode None Game No. 249 Rogue 247 Adventurer 2 Explorer 0 Win Type - Total 44 Types 14/6/12/1/1/0/8/1/0/1 Lore% 95 Gallery% 93 Achievement% 82 Wizard Run 0 Options --------- Layout 0 ASCII 0 Keyboard 1 Movement Numpad Keybinds 0 Fullscreen 1 Font 24/Smallcaps Map View 76x50 Zoom Use 0% Tactical HUD 1 Map Filters NONE Filters NONE Steam 1 RUN: 29fdca02-9fe6-452f-a4a3-16ce5c60ba6e